Workbook

Sheet Sheet1
C1: 2015 COMP REG
C2: NOVEMBER 1, 2014 Registrations
B3: TA=Term. April
B4: TO=Term. October
B5: p1=period one report only
B6: p2=period two report only
C7: COMPENSATED | AC7: GRAND TOTALS PD COVERING MAY 1, 11-Oct 31, 11
D8: Filing | E8: PD ONE | J8: Exp | K8: TOTAL | M8: All Other | N8: Lobbying Exp | O8: Backed Out | P8: NET TOTAL | Q8: BEGIN PD TWO | R8: Total | V8: Exp | W8: Total | Y8: All Other | Z8: Lobbying Exp | AA8: Backed Out | AB8: NET TOTAL
B9: Lobbyist | C9: Client | D9: CODE | E9: Compensation | F9: Reimb | G9: Recpt | H9: Entmnt | I9: Gifts | J9: all LB | K9: SECTION E | L9: Fees | M9: Exp | N9: Total PD ONE | O9: Exp PD ONE | P9: PD ONE | Q9: Compensation | R9: Reim | S9: Reception | T9: Entertain | U9: Gifts | V9: for All LB | W9: SECTION E | X9: Fees | Y9: Exp | Z9: Total PD TWO | AA9: Exp PD TWO | AB9: PD TWO
A12: 2015 | B12: 1816 Inc. | C12: New Centaur | D12: p2 | N12: =SUM(E12:M12) -> 0 | O12: 0 | P12: =SUM(N12-O12) -> 0 | Q12: 0 | R12: 0 | S12: 0 | T12: 0 | U12: 0 | V12: 0 | W12: 0 | X12: 0 | Y12: 0 | Z12: =SUM(Q12:Y12) -> 0 | AA12: 0 | AB12: =SUM(Z12-AA12) -> 0 | AC12: =SUM(P12+AB12) -> 0
C13: Northern IN Tourism Dev Commission | D13: p2 | N13: =SUM(E13:M13) -> 0 | O13: 0 | P13: =SUM(N13-O13) -> 0 | Q13: 0 | R13: 0 | S13: 0 | T13: 0 | U13: 0 | V13: 0 | W13: 0 | X13: 0 | Y13: 0 | Z13: =SUM(Q13:Y13) -> 0 | AA13: 0 | AB13: =SUM(Z13-AA13) -> 0 | AC13: =SUM(P13+AB13) -> 0
C14: Wine & Spirit Distributors | D14: p2 | N14: =SUM(E14:M14) -> 0 | O14: 0 | P14: =SUM(N14-O14) -> 0 | Q14: 0 | R14: 0 | S14: 0 | T14: 0 | U14: 0 | V14: 0 | W14: 0 | X14: 0 | Y14: 0 | Z14: =SUM(Q14:Y14) -> 0 | AA14: 0 | AB14: =SUM(Z14-AA14) -> 0 | AC14: =SUM(P14+AB14) -> 0
A15: 2015 | B15: Ade Stevens, Jane | C15: IN Corn Growers Assn | E15: 0 | F15: 0 | G15: 0 | H15: 0 | I15: 0 | J15: 0 | K15: 0 | L15: 0 | M15: 0 | N15: =SUM(E15:M15) -> 0 | O15: 0 | P15: =SUM(N15-O15) -> 0 | Q15: 0 | R15: 0 | S15: 0 | T15: 0 | U15: 0 | V15: 0 | W15: 0 | X15: 0 | Y15: 0 | Z15: =SUM(Q15:Y15) -> 0 | AA15: 0 | AB15: =SUM(Z15-AA15) -> 0 | AC15: =SUM(P15+AB15) -> 0
C16: IN Soybean Alliance | E16: 0 | F16: 0 | G16: 0 | H16: 0 | I16: 0 | J16: 0 | K16: 0 | L16: 0 | M16: 0 | N16: =SUM(E16:M16) -> 0 | O16: 0 | P16: =SUM(N16-O16) -> 0 | Q16: 0 | R16: 0 | S16: 0 | T16: 0 | U16: 0 | V16: 0 | W16: 0 | X16: 0 | Y16: 0 | Z16: =SUM(Q16:Y16) -> 0 | AA16: 0 | AB16: =SUM(Z16-AA16) -> 0 | AC16: =SUM(P16+AB16) -> 0
A17: 2015 | B17: Ainsworth, Richard | C17: United Farm Family Mut Insurance | E17: 0 | F17: 0 | G17: 0 | H17: 0 | I17: 0 | J17: 0 | K17: 0 | L17: 0 | M17: 0 | N17: =SUM(E17:M17) -> 0 | O17: 0 | P17: =SUM(N17-O17) -> 0 | Q17: 0 | R17: 0 | S17: 0 | T17: 0 | U17: 0 | V17: 0 | W17: 0 | X17: 0 | Y17: 0 | Z17: =SUM(Q17:Y17) -> 0 | AA17: 0 | AB17: =SUM(Z17-AA17) -> 0 | AC17: =SUM(P17+AB17) -> 0
A18: 2015 | B18: Alldredge, Neil | C18: Natl Assn of Mut Insurance Co. | E18: 0 | F18: 0 | G18: 0 | H18: 0 | I18: 0 | J18: 0 | K18: 0 | L18: 115 | M18: 0 | N18: 115 | O18: 0 | P18: 115 | Q18: 0 | R18: 0 | S18: 0 | T18: 0 | U18: 0 | V18: 0 | W18: 0 | X18: 115 | Y18: 0 | Z18: 115 | AA18: 0 | AB18: 115 | AC18: 230
A19: 2015 | B19: Allegue, Raul | C19: The Travelers Companies & Subsidiaries | E19: 0 | F19: 0 | G19: 0 | H19: 0 | I19: 0 | J19: 0 | K19: 0 | L19: 0 | M19: 0 | N19: =SUM(E19:M19) -> 0 | O19: 0 | P19: =SUM(N19-O19) -> 0 | Q19: 0 | R19: 0 | S19: 0 | T19: 0 | U19: 0 | V19: 0 | W19: 0 | X19: 200 | Y19: 0 | Z19: 200 | AA19: 200 | AB19: 0 | AC19: 0
A20: 2015 | B20: Allison, Kara Ann | C20: Hull & Associates, Inc. | D20: TA | E20: 0 | F20: 0 | G20: 0 | H20: 0 | I20: 0 | J20: 0 | K20: 0 | L20: 0 | M20: 0 | N20: 0 | O20: 0 | P20: 0 | Z20: 0 | AB20: 0 | AC20: 0
A21: 2015 | B21: Altria Client Svcs LLC | C21: Philip Morris USA Inc. | E21: 68347.87 | F21: 0 | G21: 0 | H21: 519.06 | I21: 0 | J21: 0 | K21: 0 | L21: 1077.05 | M21: 57564.72 | N21: 127508.7 | O21: 127508.7 | P21: 0 | Q21: 62129.23 | R21: 0 | S21: 0 | T21: 0 | U21: 0 | V21: 0 | W21: 0 | X21: 140.15 | Y21: 36.05 | Z21: 62305.43 | AA21: 62305.43 | AB21: 7.275957614e-12 | AC21: 7.275957614e-12
C22: Altria Client Svcs | E22: 0 | F22: 0 | G22: 0 | H22: 0 | I22: 0 | J22: 0 | K22: 0 | L22: 0 | M22: 0 | N22: =SUM(E22:M22) -> 0 | O22: 0 | P22: =SUM(N22-O22) -> 0 | Q22: 0 | R22: 0 | S22: 0 | T22: 0 | U22: 0 | V22: 0 | W22: 0 | X22: 0 | Y22: 0 | Z22: =SUM(Q22:Y22) -> 0 | AA22: 0 | AB22: =SUM(Z22-AA22) -> 0 | AC22: =SUM(P22+AB22) -> 0
C23: John Middleton Company | E23: 2354.37 | F23: 0 | G23: 0 | H23: 17.88 | I23: 0 | J23: 0 | K23: 0 | L23: 37.1 | M23: 1982.93 | N23: 4392.28 | O23: 4392.28 | P23: 0 | Q23: 2140.16 | R23: 0 | S23: 0 | T23: 0 | U23: 0 | V23: 0 | W23: 0 | X23: 4.83 | Y23: 1.24 | Z23: 2146.23 | AA23: 2146.23 | AB23: -4.547473509e-13 | AC23: -4.547473509e-13
C24: US Smokeless Tobacco Co | E24: 8303.5 | F24: 0 | G24: 0 | H24: 63.06 | I24: 0 | J24: 0 | K24: 0 | L24: 130.85 | M24: 6993.47 | N24: 15490.88 | O24: 15490.88 | P24: 1.818989404e-12 | Q24: 7548.01 | R24: 0 | S24: 0 | T24: 0 | U24: 0 | V24: 0 | W24: 0 | X24: 17.03 | Y24: 4.38 | Z24: 7569.42 | AA24: 7569.42 | AB24: 0 | AC24: 1.818989404e-12
C25: Nu Mark LLC | E25: 79.01 | F25: 0 | G25: 0 | H25: 0.6 | I25: 0 | J25: 0 | K25: 0 | L25: 1.25 | M25: 66.54 | N25: =SUM(E25:M25) -> 147.4 | O25: 147.4 | P25: =SUM(N25-O25) -> 0 | Q25: 71.82 | R25: 0 | S25: 0 | T25: 0 | U25: 0 | V25: 0 | W25: 0 | X25: 0.16 | Y25: 0.04 | Z25: =SUM(Q25:Y25) -> 72.02 | AA25: 72.02 | AB25: =SUM(Z25-AA25) -> 0 | AC25: =SUM(P25+AB25) -> 0
A26: 2015 | B26: Anderson, David | C26: AstraZeneca Pharmacueticals | E26: 0 | F26: 0 | G26: 0 | H26: 0 | I26: 0 | J26: 0 | K26: 0 | L26: 0 | M26: 0 | N26: 0 | O26: 0 | P26: 0 | Q26: 0 | R26: 0 | S26: 0 | T26: 0 | U26: 0 | V26: 0 | W26: 0 | X26: 0 | Y26: 0 | Z26: 0 | AA26: 0 | AB26: 0 | AC26: 0
A27: 2015 | B27: Anderson, Evans | C27: Jamestown LP | E27: 0 | F27: 0 | G27: 0 | H27: 0 | I27: 0 | J27: 0 | K27: 0 | L27: 0 | M27: 0 | N27: 0 | O27: 0 | P27: 0 | Q27: 0 | R27: 0 | S27: 0 | T27: 0 | U27: 0 | V27: 0 | W27: 0 | X27: 0 | Y27: 0 | Z27: 0 | AA27: 0 | AB27: 0 | AC27: 0
A28: 2015 | B28: Anderson, Megan | C28: Sierra Club Hoosier Chptr | D28: TO | E28: 0 | F28: 0 | G28: 0 | H28: 0 | I28: 0 | J28: 0 | K28: 0 | L28: 0 | M28: 27.42 | N28: 27.42 | O28: 27.42 | P28: 0 | Q28: 0 | R28: 0 | S28: 0 | T28: 0 | U28: 0 | V28: 0 | W28: 0 | X28: 0 | Y28: 0 | Z28: 0 | AA28: 0 | AB28: 0 | AC28: 0
A29: 2015 | B29: APPIAN | C29: Build IN Council | E29: 14400 | F29: 0 | G29: 0 | H29: 0 | I29: 0 | J29: 0 | K29: 0 | L29: 0 | M29: 0 | N29: 14400 | O29: 14400 | P29: 0 | Q29: 14400 | R29: 0 | S29: 0 | T29: 0 | U29: 0 | V29: 0 | W29: 0 | X29: 0 | Y29: 0 | Z29: 14400 | AA29: 14400 | AB29: 0 | AC29: 0
C30: Hendricks Co. Board of Commissioners | E30: 900 | F30: 0 | G30: 0 | H30: 0 | I30: 0 | J30: 0 | K30: 0 | L30: 0 | M30: 0 | N30: 900 | O30: 900 | P30: 0 | Q30: 900 | R30: 0 | S30: 0 | T30: 0 | U30: 0 | V30: 0 | W30: 0 | X30: 0 | Y30: 0 | Z30: 900 | AA30: 900 | AB30: 0 | AC30: 0
C31: IN Construction Assn | E31: 2475 | F31: 0 | G31: 0 | H31: 0 | I31: 0 | J31: 0 | K31: 0 | L31: 0 | M31: 0 | N31: 2475 | O31: 2475 | P31: 0 | Q31: 2475 | R31: 0 | S31: 0 | T31: 0 | U31: 0 | V31: 0 | W31: 0 | X31: 0 | Y31: 0 | Z31: 2475 | AA31: 2475 | AB31: 0 | AC31: 0
C32: 69 Bridgelink | E32: 2925 | F32: 0 | G32: 0 | H32: 0 | I32: 0 | J32: 0 | K32: 0 | L32: 0 | M32: 0 | N32: =SUM(E32:M32) -> 2925 | O32: 2925 | P32: =SUM(N32-O32) -> 0 | Q32: 3825 | R32: 0 | S32: 0 | T32: 0 | U32: 0 | V32: 0 | W32: 0 | X32: 0 | Y32: 0 | Z32: =SUM(Q32:Y32) -> 3825 | AA32: 3825 | AB32: =SUM(Z32-AA32) -> 0 | AC32: =SUM(P32+AB32) -> 0
C33: US 31 Coalition Inc. | E33: 900 | F33: 0 | G33: 0 | H33: 0 | I33: 0 | J33: 0 | K33: 0 | L33: 0 | M33: 0 | N33: 900 | O33: 900 | P33: 0 | Q33: 900 | R33: 0 | S33: 0 | T33: 0 | U33: 0 | V33: 0 | W33: 0 | X33: 0 | Y33: 0 | Z33: 900 | AA33: 900 | AB33: 0 | AC33: 0
C34: White Co Board of Commissioners | D34: TA | E34: 600 | F34: 0 | G34: 0 | H34: 0 | I34: 0 | J34: 0 | K34: 0 | L34: 0 | M34: 0 | N34: 600 | O34: 600 | P34: 0 | Z34: 0 | AB34: 0 | AC34: 0
A35: 2015 | B35: Arland, Karen L. | C35: See clients of Ice Miller | E35: 0 | F35: 0 | G35: 0 | H35: 0 | I35: 0 | J35: 0 | K35: 0 | L35: 0 | M35: 0 | N35: 0 | O35: 0 | P35: 0 | Q35: 0 | R35: 0 | S35: 0 | T35: 0 | U35: 0 | V35: 0 | W35: 0 | X35: 0 | Y35: 0 | Z35: 0 | AA35: 0 | AB35: 0 | AC35: 0
A36: 2015 | B36: Armstrong, LeTonia | C36: Abbvie | D36: TA | E36: 0 | F36: 0 | G36: 0 | H36: 0 | I36: 0 | J36: 0 | K36: 0 | L36: 0 | M36: 0 | N36: =SUM(E36:M36) -> 0 | O36: 0 | P36: =SUM(N36-O36) -> 0 | Z36: =SUM(Q36:Y36) -> 0 | AB36: =SUM(Z36-AA36) -> 0 | AC36: =SUM(P36+AB36) -> 0
A37: 2015 | B37: Ashton, Brett | C37: Krieg DeVault, LLP | E37: 0 | F37: 0 | G37: 0 | H37: 599.47 | I37: 0 | J37: 716.47 | K37: 426.89 | L37: 0 | M37: 0 | N37: 1742.83 | O37: 1742.83 | P37: 0 | Q37: 0 | R37: 0 | S37: 0 | T37: 0 | U37: 0 | V37: 0 | W37: 0 | X37: 0 | Y37: 0 | Z37: 0 | AA37: 0 | AB37: 0 | AC37: 0
A38: 2015 | B38: Auberry, Brent | C38: Faegre Baker Daniels LLP | E38: 0 | F38: 0 | G38: 0 | H38: 0 | I38: 0 | J38: 0 | K38: 0 | L38: 0 | M38: 0 | N38: 0 | O38: 0 | P38: 0 | Q38: 0 | R38: 0 | S38: 0 | T38: 0 | U38: 0 | V38: 0 | W38: 0 | X38: 0 | Y38: 0 | Z38: 0 | AA38: 0 | AB38: 0 | AC38: 0
A39: 2015 | B39: Augustus, Eric | C39: IN Utility Shareholders Assn | E39: 0 | F39: 0 | G39: 0 | H39: 0 | I39: 0 | J39: 0 | K39: 0 | L39: 0 | M39: 0 | N39: =SUM(E39:M39) -> 0 | O39: 0 | P39: =SUM(N39-O39) -> 0 | Q39: 0 | R39: 0 | S39: 0 | T39: 0 | U39: 0 | V39: 0 | W39: 0 | X39: 0 | Y39: 0 | Z39: =SUM(Q39:Y39) -> 0 | AA39: 0 | AB39: =SUM(Z39-AA39) -> 0 | AC39: =SUM(P39+AB39) -> 0
A40: 2015 | B40: Auslander, Caryl | C40: Clients of The Corydon Group | D40: TA | E40: 0 | F40: 0 | G40: 0 | H40: 83.81 | I40: 0 | J40: 0 | K40: 0 | L40: 0 | M40: 0 | N40: 83.81 | O40: 83.81 | P40: 0 | Z40: 0 | AB40: 0 | AC40: 0
C41: IN Chamber of Commerce | E41: 0 | F41: 0 | G41: 0 | H41: 27.19 | I41: 0 | J41: 0 | K41: 0 | L41: 0 | M41: 0 | N41: =SUM(E41:M41) -> 27.19 | O41: 27.19 | P41: =SUM(N41-O41) -> 0 | Q41: 0 | R41: 0 | S41: 0 | T41: 0 | U41: 0 | V41: 0 | W41: 0 | X41: 0 | Y41: 0 | Z41: =SUM(Q41:Y41) -> 0 | AA41: 0 | AB41: =SUM(Z41-AA41) -> 0 | AC41: =SUM(P41+AB41) -> 0
A42: 2015 | B42: BRL Associates, Inc. | C42: Build IN Council | D42: TA | E42: 10000 | F42: 0 | G42: 0 | H42: 0 | I42: 0 | J42: 0 | K42: 0 | L42: 400 | M42: 0 | N42: =SUM(E42:M42) -> 10400 | O42: 0 | P42: =SUM(N42-O42) -> 10400 | Z42: =SUM(Q42:Y42) -> 0 | AB42: =SUM(Z42-AA42) -> 0 | AC42: =SUM(P42+AB42) -> 10400
A43: 2015 | B43: Babbitt, Robin | C43: Ice Miller LLP | E43: 0 | F43: 0 | G43: 0 | H43: 0 | I43: 0 | J43: 0 | K43: 0 | L43: 0 | M43: 0 | N43: =SUM(E43:M43) -> 0 | O43: 0 | P43: =SUM(N43-O43) -> 0 | Q43: 0 | R43: 0 | S43: 0 | T43: 0 | U43: 0 | V43: 0 | W43: 0 | X43: 0 | Y43: 0 | Z43: =SUM(Q43:Y43) -> 0 | AA43: 0 | AB43: =SUM(Z43-AA43) -> 0 | AC43: =SUM(P43+AB43) -> 0
A44: 2015 | B44: Bailey, Todd | C44: Huntington Bancshares Inc | E44: 0 | F44: 0 | G44: 0 | H44: 0 | I44: 0 | J44: 0 | K44: 0 | L44: 0 | M44: 0 | N44: 0 | O44: 0 | P44: 0 | Q44: 0 | R44: 0 | S44: 0 | T44: 0 | U44: 0 | V44: 0 | W44: 0 | X44: 0 | Y44: 0 | Z44: 0 | AA44: 0 | AB44: 0 | AC44: 0
A45: 2015 | B45: Bainter, Jeffrey J. | C45: Brtherhd Maintnce Way Empl Division, IBT | E45: 0 | F45: 0 | G45: 0 | H45: 0 | I45: 0 | J45: 0 | K45: 0 | L45: 0 | M45: 0 | N45: 0 | O45: 0 | P45: 0 | Q45: 0 | R45: 0 | S45: 0 | T45: 0 | U45: 0 | V45: 0 | W45: 0 | X45: 0 | Y45: 0 | Z45: 0 | AA45: 0 | AB45: 0 | AC45: 0
A46: 2015 | B46: Baker, A. John | C46: Caesars Enterprise Services, LLC | E46: 0 | F46: 0 | G46: 0 | H46: 1426.19 | I46: 0 | J46: 0 | K46: 0 | L46: 0 | M46: 0 | N46: =SUM(E46:M46) -> 1426.19 | O46: 1426.19 | P46: =SUM(N46-O46) -> 0 | Q46: 0 | R46: 0 | S46: 0 | T46: 362.76 | U46: 0 | V46: 0 | W46: 0 | X46: 0 | Y46: 0 | Z46: 362.76 | AA46: 362.76 | AB46: 0 | AC46: 0
A47: 2015 | B47: Baker, John J | C47: Repub. Natl Distrib. Co of IN/ NWS | E47: 0 | F47: 0 | G47: 0 | H47: 0 | I47: 0 | J47: 0 | K47: 0 | L47: 0 | M47: 0 | N47: 0 | O47: 0 | P47: 0 | Q47: 0 | R47: 0 | S47: 0 | T47: 0 | U47: 0 | V47: 0 | W47: 0 | X47: 0 | Y47: 0 | Z47: =SUM(Q47:Y47) -> 0 | AA47: 0 | AB47: =SUM(Z47-AA47) -> 0 | AC47: =SUM(P47+AB47) -> 0
A48: 2015 | B48: Barker, Nicole | C48: Save the Dunes | E48: 0 | F48: 0 | G48: 0 | H48: 0 | I48: 0 | J48: 0 | K48: 0 | L48: 0 | M48: 0 | N48: =SUM(E48:M48) -> 0 | O48: 0 | P48: 0 | Q48: 0 | R48: 0 | S48: 0 | T48: 0 | U48: 0 | V48: 0 | W48: 0 | X48: 0 | Y48: 0 | Z48: =SUM(Q48:Y48) -> 0 | AA48: 0 | AB48: =SUM(Z48-AA48) -> 0 | AC48: =SUM(P48+AB48) -> 0
A49: 2015 | B49: Barnes & Thornburg, LLP | C49: non client expenses | E49: 0 | F49: 0 | G49: 0 | H49: 0 | I49: 0 | J49: 0 | K49: 0 | L49: 410 | M49: 0 | N49: 410 | O49: 0 | P49: 410 | Q49: 0 | R49: 0 | S49: 0 | T49: 0 | U49: 0 | V49: 0 | W49: 0 | X49: 0 | Y49: 0 | Z49: =SUM(Q49:Y49) -> 0 | AA49: 0 | AB49: =SUM(Z49-AA49) -> 0 | AC49: =SUM(P49+AB49) -> 410
C50: AW Holdings LLC | E50: 19109.16 | F50: 8.25 | G50: 0 | H50: 0 | I50: 0 | J50: 0 | K50: 0 | L50: 0 | M50: 0 | N50: 19117.41 | O50: 19117.41 | P50: 0 | Q50: 16191.39 | R50: 44.19 | S50: 0 | T50: 0 | U50: 0 | V50: 0 | W50: 0 | X50: 12 | Y50: 0 | Z50: =SUM(Q50:Y50) -> 16247.58 | AA50: 16247.58 | AB50: =SUM(Z50-AA50) -> 0 | AC50: =SUM(P50+AB50) -> 0
C51: Advantage Health Solutions | D51: TO | E51: 17337.08 | F51: 934.28 | G51: 0 | H51: 0 | I51: 0 | J51: 0 | K51: 0 | L51: 0 | M51: 0 | N51: 18271.36 | O51: 18271.36 | P51: 0 | Q51: 6659.26 | R51: 284.52 | S51: 0 | T51: 0 | U51: 0 | V51: 0 | W51: 0 | X51: 0 | Y51: 0 | Z51: =SUM(Q51:Y51) -> 6943.78 | AA51: 6943.78 | AB51: =SUM(Z51-AA51) -> 9.094947018e-13 | AC51: =SUM(P51+AB51) -> 9.094947018e-13
C52: Alliance Res Consumer Legal Funding | E52: 0 | F52: 0 | G52: 0 | H52: 0 | I52: 0 | J52: 0 | K52: 0 | L52: 0 | M52: 0 | N52: =SUM(E52:M52) -> 0 | O52: 0 | P52: =SUM(N52-O52) -> 0 | Q52: 23073.47 | R52: 0 | S52: 0 | T52: 0 | U52: 0 | V52: 0 | W52: 0 | X52: 215 | Y52: 0 | Z52: =SUM(Q52:Y52) -> 23288.47 | AA52: 23288.47 | AB52: =SUM(Z52-AA52) -> 0 | AC52: =SUM(P52+AB52) -> 0
C53: Assn of Clerks of Circuit Courts IN | E53: 15286.87 | F53: 8 | G53: 0 | H53: 0 | I53: 0 | J53: 0 | K53: 0 | L53: 0 | M53: 0 | N53: 15294.87 | O53: 15294.87 | P53: 0 | Q53: 12910.52 | R53: 0 | S53: 0 | T53: 0 | U53: 0 | V53: 0 | W53: 0 | X53: 5 | Y53: 0 | Z53: =SUM(Q53:Y53) -> 12915.52 | AA53: 12915.52 | AB53: =SUM(Z53-AA53) -> 0 | AC53: =SUM(P53+AB53) -> 0
C54: Assn of IN Prosecuting Attorneys, Inc. | E54: 29647.38 | F54: 20.58 | G54: 0 | H54: 0 | I54: 0 | J54: 0 | K54: 0 | L54: 0 | M54: 0 | N54: 29667.96 | O54: 29667.96 | P54: 3.637978807e-12 | Q54: 45751.51 | R54: 0 | S54: 0 | T54: 0 | U54: 0 | V54: 0 | W54: 0 | X54: 0 | Y54: 0 | Z54: 45751.51 | AA54: 45751.51 | AB54: 0 | AC54: 3.637978807e-12
C55: BC Initiative, Inc. | E55: 15975.78 | F55: 0 | G55: 0 | H55: 0 | I55: 0 | J55: 0 | K55: 0 | L55: 0 | M55: 0 | N55: 15975.78 | O55: 15975.78 | P55: 0 | Q55: 16597.35 | R55: 0 | S55: 0 | T55: 0 | U55: 0 | V55: 0 | W55: 0 | X55: 10 | Y55: 0 | Z55: 16607.35 | AA55: 16607.35 | AB55: 0 | AC55: 0
C56: Bd Commissioner Dearborn Co | E56: 17650.78 | F56: 0 | G56: 0 | H56: 0 | I56: 0 | J56: 0 | K56: 0 | L56: 205 | M56: 0 | N56: 17855.78 | O56: 17855.78 | P56: 0 | Q56: 11088.05 | R56: 11.12 | S56: 0 | T56: 0 | U56: 0 | V56: 0 | W56: 0 | X56: 10 | Y56: 0 | Z56: 11109.17 | AA56: 11109.17 | AB56: 0 | AC56: 0
C57: Bd Commissioner Porter Co | D57: TA | E57: 14360.51 | F57: 0 | G57: 0 | H57: 0 | I57: 0 | J57: 0 | K57: 0 | L57: 0 | M57: 0 | N57: 14360.51 | O57: 14360.51 | P57: 0 | Z57: =SUM(Q57:Y57) -> 0 | AB57: =SUM(Z57-AA57) -> 0 | AC57: =SUM(P57+AB57) -> 0
C58: Bd Commissioner Rush Co | D58: TO | E58: 12666.99 | F58: 0 | G58: 0 | H58: 0 | I58: 0 | J58: 0 | K58: 0 | L58: 0 | M58: 0 | N58: 12666.99 | O58: 12666.99 | P58: 0 | Q58: 120.71 | R58: 0 | S58: 0 | T58: 0 | U58: 0 | V58: 0 | W58: 0 | X58: 10 | Y58: 0 | Z58: 130.71 | AA58: 130.71 | AB58: -2.842170943e-14 | AC58: -2.842170943e-14
C59: Bd Commissioner Shelby Co | E59: 4734.87 | F59: 0 | G59: 0 | H59: 0 | I59: 0 | J59: 0 | K59: 0 | L59: 205 | M59: 0 | N59: 4939.87 | O59: 4939.87 | P59: 0 | Q59: 1103.73 | R59: 0 | S59: 0 | T59: 0 | U59: 0 | V59: 0 | W59: 0 | X59: 225 | Y59: 0 | Z59: 1328.73 | AA59: 1328.73 | AB59: 0 | AC59: 0
C60: Bd Commissioner St. Joseph Co | E60: 0 | F60: 0 | G60: 0 | H60: 0 | I60: 0 | J60: 0 | K60: 0 | L60: 0 | M60: 0 | N60: 0 | O60: 0 | P60: 0 | Q60: 1213.55 | R60: 0 | S60: 0 | T60: 0 | U60: 0 | V60: 0 | W60: 0 | X60: 10 | Y60: 0 | Z60: 1223.55 | AA60: 1223.55 | AB60: 0 | AC60: 0
C61: CRC Health Group | E61: 16858.42 | F61: 0 | G61: 0 | H61: 0 | I61: 0 | J61: 0 | K61: 0 | L61: 0 | M61: 0 | N61: 16858.42 | O61: 16858.42 | P61: 0 | Q61: 11406.91 | R61: 32.56 | S61: 0 | T61: 0 | U61: 0 | V61: 0 | W61: 0 | X61: 10 | Y61: 0 | Z61: 11449.47 | AA61: 11449.47 | AB61: 0 | AC61: 0
C62: CVS Health | E62: 13067.33 | F62: 0 | G62: 0 | H62: 0 | I62: 0 | J62: 11 | K62: 0 | L62: 410 | M62: 0 | N62: 13488.33 | O62: 13488.33 | P62: 0 | Q62: 10213.09 | R62: 22.88 | S62: 0 | T62: 0 | U62: 0 | V62: 0 | W62: 0 | X62: 227 | Y62: 0 | Z62: 10462.97 | AA62: 10462.97 | AB62: 0 | AC62: 0
C63: Charter Schools USA | E63: 18403.04 | F63: 163.62 | G63: 0 | H63: 0 | I63: 0 | J63: 0 | K63: 0 | L63: 0 | M63: 0 | N63: 18566.66 | O63: 18566.66 | P63: 0 | Q63: 13821.07 | R63: 44.19 | S63: 0 | T63: 0 | U63: 0 | V63: 0 | W63: 0 | X63: 5 | Y63: 0 | Z63: 13870.26 | AA63: 13870.26 | AB63: 0 | AC63: 0
C64: City of Anderson | D64: TO | E64: 5428.24 | F64: 0 | G64: 0 | H64: 0 | I64: 0 | J64: 0 | K64: 0 | L64: 205 | M64: 0 | N64: 5633.24 | O64: 5633.24 | P64: 0 | Q64: 301.77 | R64: 0 | S64: 0 | T64: 0 | U64: 0 | V64: 0 | W64: 0 | X64: 10 | Y64: 0 | Z64: 311.77 | AA64: 311.77 | AB64: 0 | AC64: 0
C65: City of Evansville | D65: TO | E65: 18991.88 | F65: 0 | G65: 0 | H65: 0 | I65: 0 | J65: 0 | K65: 0 | L65: 205 | M65: 0 | N65: 19196.88 | O65: 19196.88 | P65: 0 | Q65: 470.74 | R65: 0 | S65: 0 | T65: 0 | U65: 0 | V65: 0 | W65: 0 | X65: 10 | Y65: 0 | Z65: =SUM(Q65:Y65) -> 480.74 | AA65: 480.74 | AB65: =SUM(Z65-AA65) -> 0 | AC65: =SUM(P65+AB65) -> 0
C66: City of Fishers | E66: 22887.12 | F66: 11.68 | G66: 0 | H66: 0 | I66: 0 | J66: 0 | K66: 0 | L66: 0 | M66: 0 | N66: 22898.8 | O66: 22898.8 | P66: 0 | Q66: 3490.56 | R66: 0 | S66: 0 | T66: 0 | U66: 0 | V66: 0 | W66: 0 | X66: 10 | Y66: 0 | Z66: 3500.56 | AA66: 3500.56 | AB66: 0 | AC66: 0
C67: City of Hammond | D67: TA | E67: 5823.2 | F67: 199.98 | G67: 0 | H67: 0 | I67: 0 | J67: 0 | K67: 0 | L67: 0 | M67: 0 | N67: 6023.18 | O67: 6023.18 | P67: -9.094947018e-13 | Z67: 0 | AB67: 0 | AC67: -9.094947018e-13
C68: City of Indianapolis | D68: TO | E68: 32790.08 | F68: 15.56 | G68: 0 | H68: 6.12 | I68: 0 | J68: 7.61 | K68: 0 | L68: 0 | M68: 0 | N68: =SUM(E68:M68) -> 32819.37 | O68: 32819.37 | P68: =SUM(N68-O68) -> 0 | Q68: 19192.57 | R68: 49.98 | S68: 0 | T68: 0 | U68: 0 | V68: 0 | W68: 0 | X68: 215 | Y68: 0 | Z68: 19457.55 | AA68: 19457.55 | AB68: 0 | AC68: 0
C69: City of Kokomo | D69: TA | E69: 2183.7 | F69: 0 | G69: 0 | H69: 0 | I69: 0 | J69: 0 | K69: 0 | L69: 205 | M69: 0 | N69: =SUM(E69:M69) -> 2388.7 | O69: 2388.7 | P69: =SUM(N69-O69) -> 0 | Z69: 0 | AB69: 0 | AC69: 0
C70: City of Marion | D70: TO | E70: 288.88 | F70: 0 | G70: 0 | H70: 0 | I70: 0 | J70: 0 | K70: 0 | L70: 0 | M70: 0 | N70: 288.88 | O70: 288.88 | P70: 0 | Q70: 60.35 | R70: 0 | S70: 0 | T70: 0 | U70: 0 | V70: 0 | W70: 0 | X70: 10 | Y70: 0 | Z70: 70.35 | AA70: 70.35 | AB70: 0 | AC70: 0
C71: City of Shelbyville | D71: TO | E71: 5343.64 | F71: 0 | G71: 0 | H71: 0 | I71: 0 | J71: 0 | K71: 0 | L71: 205 | M71: 0 | N71: =SUM(E71:M71) -> 5548.64 | O71: 5548.64 | P71: =SUM(N71-O71) -> 0 | Q71: 945.86 | R71: 0 | S71: 0 | T71: 0 | U71: 0 | V71: 0 | W71: 0 | X71: 15 | Y71: 0 | Z71: =SUM(Q71:Y71) -> 960.86 | AA71: 960.86 | AB71: =SUM(Z71-AA71) -> 0 | AC71: =SUM(P71+AB71) -> 0
C72: City of Terre Haute, Indiana | D72: TO | E72: 13737.57 | F72: 34.74 | G72: 0 | H72: 0 | I72: 0 | J72: 0 | K72: 0 | L72: 0 | M72: 0 | N72: =SUM(E72:M72) -> 13772.31 | O72: 13772.31 | P72: =SUM(N72-O72) -> 0 | Q72: 2267.21 | R72: 0 | S72: 0 | T72: 0 | U72: 0 | V72: 0 | W72: 0 | X72: 10 | Y72: 0 | Z72: =SUM(Q72:Y72) -> 2277.21 | AA72: 2277.21 | AB72: =SUM(Z72-AA72) -> 0 | AC72: =SUM(P72+AB72) -> 0
C73: Coalition for Homelessness Intervention and Prev | E73: 0 | F73: 0 | G73: 0 | H73: 0 | I73: 0 | J73: 0 | K73: 0 | L73: 0 | M73: 0 | N73: 0 | O73: 0 | P73: 0 | Q73: 0 | R73: 0 | S73: 0 | T73: 0 | U73: 0 | V73: 0 | W73: 0 | X73: 127 | Y73: 0 | Z73: 127 | AA73: 127 | AB73: 0 | AC73: 0
C74: Common Council City of Greenwood | E74: 26826.01 | F74: 8.68 | G74: 0 | H74: 0 | I74: 0 | J74: 0 | K74: 0 | L74: 0 | M74: 0 | N74: 26834.69 | O74: 26834.69 | P74: 0 | Q74: 2640.48 | R74: 0 | S74: 0 | T74: 0 | U74: 0 | V74: 0 | W74: 0 | X74: 227 | Y74: 0 | Z74: =SUM(Q74:Y74) -> 2867.48 | AA74: 2867.48 | AB74: =SUM(Z74-AA74) -> 0 | AC74: =SUM(P74+AB74) -> 0
C75: Concerned Creditors Bar IN | E75: 20907.33 | F75: 225.25 | G75: 0 | H75: 0 | I75: 0 | J75: 0 | K75: 0 | L75: 0 | M75: 0 | N75: 21132.58 | O75: 21132.58 | P75: 0 | Q75: 19841.8 | R75: 22.87 | S75: 0 | T75: 0 | U75: 0 | V75: 0 | W75: 0 | X75: 125 | Y75: 0 | Z75: =SUM(Q75:Y75) -> 19989.67 | AA75: 19989.67 | AB75: =SUM(Z75-AA75) -> 0 | AC75: =SUM(P75+AB75) -> 0
C76: Cummins | E76: 0 | F76: 0 | G76: 0 | H76: 0 | I76: 0 | J76: 0 | K76: 0 | L76: 0 | M76: 0 | N76: =SUM(E76:M76) -> 0 | O76: 0 | P76: =SUM(N76-O76) -> 0 | Q76: 8932.6 | R76: 0 | S76: 0 | T76: 17.67 | U76: 0 | V76: 0 | W76: 0 | X76: 0 | Y76: 0 | Z76: =SUM(Q76:Y76) -> 8950.27 | AA76: 8950.27 | AB76: =SUM(Z76-AA76) -> 0 | AC76: =SUM(P76+AB76) -> 0
C77: Damar Charter School | E77: 1265.65 | F77: 0 | G77: 0 | H77: 0 | I77: 0 | J77: 0 | K77: 0 | L77: 105 | M77: 0 | N77: 1370.65 | O77: 1370.65 | P77: 0 | Q77: 5296.86 | R77: 0 | S77: 0 | T77: 0 | U77: 0 | V77: 0 | W77: 0 | X77: 120 | Y77: 0 | Z77: =SUM(Q77:Y77) -> 5416.86 | AA77: 5416.86 | AB77: =SUM(Z77-AA77) -> 0 | AC77: =SUM(P77+AB77) -> 0
C78: Distilled Spirits of the US, Inc. | E78: 32843.75 | F78: 0 | G78: 0 | H78: 0 | I78: 0 | J78: 0 | K78: 0 | L78: 0 | M78: 0 | N78: =SUM(E78:M78) -> 32843.75 | O78: 32843.75 | P78: =SUM(N78-O78) -> 0 | Q78: 10930.18 | R78: 0 | S78: 0 | T78: 0 | U78: 0 | V78: 0 | W78: 0 | X78: 15 | Y78: 0 | Z78: =SUM(Q78:Y78) -> 10945.18 | AA78: 10945.18 | AB78: =SUM(Z78-AA78) -> 0 | AC78: =SUM(P78+AB78) -> 0
C79: Eli Lilly Corporation | E79: 12750.83 | F79: 0 | G79: 0 | H79: 0 | I79: 0 | J79: 0 | K79: 0 | L79: 0 | M79: 0 | N79: 12750.83 | O79: 12750.83 | P79: 0 | Q79: 5569.78 | R79: 0 | S79: 0 | T79: 0 | U79: 0 | V79: 0 | W79: 0 | X79: 5 | Y79: 0 | Z79: 5574.78 | AA79: 5574.78 | AB79: 0 | AC79: 0
C80: Enterprise Leasing Co | E80: 17006.85 | F80: 83.91 | G80: 0 | H80: 0 | I80: 0 | J80: 0 | K80: 0 | L80: 0 | M80: 0 | N80: =SUM(E80:M80) -> 17090.76 | O80: 17090.76 | P80: =SUM(N80-O80) -> 0 | Q80: 7583.91 | R80: 0 | S80: 0 | T80: 0 | U80: 0 | V80: 17.67 | W80: 0 | X80: 5 | Y80: 0 | Z80: =SUM(Q80:Y80) -> 7606.58 | AA80: 7606.58 | AB80: =SUM(Z80-AA80) -> 0 | AC80: =SUM(P80+AB80) -> 0
C81: Family Express Corporation | E81: 25077.63 | F81: 0 | G81: 0 | H81: 0 | I81: 0 | J81: 0 | K81: 0 | L81: 0 | M81: 0 | N81: 25077.63 | O81: 25077.63 | P81: 0 | Q81: 9197.7 | R81: 0 | S81: 0 | T81: 0 | U81: 0 | V81: 0 | W81: 0 | X81: 10 | Y81: 0 | Z81: 9207.7 | AA81: 9207.7 | AB81: 0 | AC81: 0
C82: Fndntn for Educ. Choice/ dba Friedman Fdntn | E82: 19862.58 | F82: 86.04 | G82: 0 | H82: 0 | I82: 0 | J82: 0 | K82: 0 | L82: 0 | M82: 0 | N82: 19948.62 | O82: 19948.62 | P82: 3.637978807e-12 | Q82: 5726.08 | R82: 0 | S82: 0 | T82: 0 | U82: 0 | V82: 0 | W82: 0 | X82: 5 | Y82: 0 | Z82: 5731.08 | AA82: 5731.08 | AB82: 0 | AC82: 3.637978807e-12
C83: Fndtns of E. Chicago | E83: 88.26 | F83: 0 | G83: 0 | H83: 0 | I83: 0 | J83: 0 | K83: 0 | L83: 0 | M83: 0 | N83: 88.26 | O83: 88.26 | P83: 0 | Q83: 0 | R83: 0 | S83: 0 | T83: 0 | U83: 0 | V83: 0 | W83: 0 | X83: 5 | Y83: 0 | Z83: 5 | AA83: 5 | AB83: 0 | AC83: 0
C84: Gary/Chicago Intl Airport Authority | E84: 13537.33 | F84: 0 | G84: 0 | H84: 0 | I84: 0 | J84: 0 | K84: 0 | L84: 0 | M84: 0 | N84: 13537.33 | O84: 13537.33 | P84: 0 | Q84: 8275.85 | R84: 0 | S84: 0 | T84: 0 | U84: 0 | V84: 0 | W84: 0 | X84: 1212 | Y84: 0 | Z84: 9487.85 | AA84: 9487.85 | AB84: 0 | AC84: 0
C85: GlaxoSmithKline | E85: 3669.53 | F85: 37.79 | G85: 0 | H85: 0 | I85: 0 | J85: 11 | K85: 0 | L85: 0 | M85: 0 | N85: =SUM(E85:M85) -> 3718.32 | O85: 3718.32 | P85: =SUM(N85-O85) -> 0 | Q85: 7265.06 | R85: 19.95 | S85: 0 | T85: 0 | U85: 0 | V85: 63.44 | W85: 0 | X85: 20 | Y85: 0 | Z85: =SUM(Q85:Y85) -> 7368.45 | AA85: 7368.45 | AB85: =SUM(Z85-AA85) -> 0 | AC85: =SUM(P85+AB85) -> 0
C86: Greene Co Redevelopment Commiss. | D86: TA | E86: 28199.62 | F86: 19.88 | G86: 0 | H86: 0 | I86: 0 | J86: 0 | K86: 0 | L86: 0 | M86: 0 | N86: 28219.5 | O86: 28219.5 | P86: 0 | Z86: 0 | AB86: 0 | AC86: 0
C87: Hamilton Southeastern Schools | D87: TA | E87: 16910.25 | F87: 0 | G87: 0 | H87: 0 | I87: 0 | J87: 0 | K87: 0 | L87: 205 | M87: 0 | N87: 17115.25 | O87: 17115.25 | P87: 0 | Z87: 0 | AB87: 0 | AC87: 0
C88: Health and Hospital Corporation of Marion Co | E88: 40647.47 | F88: 0 | G88: 0 | H88: 0 | I88: 0 | J88: 6.13 | K88: 0 | L88: 1 | M88: 0 | N88: 40654.6 | O88: 40654.6 | P88: 0 | Q88: 31406.96 | R88: 44.19 | S88: 0 | T88: 0 | U88: 0 | V88: 0 | W88: 0 | X88: 225 | Y88: 0 | Z88: 31676.15 | AA88: 31676.15 | AB88: -3.637978807e-12 | AC88: -3.637978807e-12
C89: Independent Colleges of IN | E89: 17385.72 | F89: 15.56 | G89: 0 | H89: 0 | I89: 0 | J89: 0 | K89: 0 | L89: 0 | M89: 0 | N89: 17401.28 | O89: 17401.28 | P89: 3.637978807e-12 | Q89: 21606.73 | R89: 60.72 | S89: 0 | T89: 0 | U89: 0 | V89: 0 | W89: 0 | X89: 132 | Y89: 0 | Z89: 21799.45 | AA89: 21799.45 | AB89: 0 | AC89: 3.637978807e-12
C90: Indiana American Water Company | E90: 25067.56 | F90: 3561.66 | G90: 0 | H90: 0 | I90: 0 | J90: 0 | K90: 0 | L90: 0 | M90: 0 | N90: 28629.22 | O90: 28629.22 | P90: 0 | Q90: 14713.5 | R90: 9.47 | S90: 0 | T90: 0 | U90: 0 | V90: 0 | W90: 0 | X90: 15 | Y90: 0 | Z90: 14737.97 | AA90: 14737.97 | AB90: 0 | AC90: 0
C91: IN Assn for the Education of Young Children | E91: 7380.91 | F91: 44.07 | G91: 0 | H91: 266.96 | I91: 0 | J91: 11 | K91: 0 | L91: 0 | M91: 0 | N91: 7702.94 | O91: 7702.94 | P91: 0 | Q91: 5571.18 | R91: 19.95 | S91: 0 | T91: 0 | U91: 0 | V91: 0 | W91: 0 | X91: 245 | Y91: 0 | Z91: 5836.13 | AA91: 5836.13 | AB91: 0 | AC91: 0
C92: IN Assn of Background Screeners | E92: 14945.35 | F92: 0 | G92: 0 | H92: 0 | I92: 0 | J92: 0 | K92: 0 | L92: 405 | M92: 0 | N92: 15350.35 | O92: 15350.35 | P92: 0 | Q92: 4494.01 | R92: 0 | S92: 0 | T92: 0 | U92: 0 | V92: 0 | W92: 0 | X92: 10 | Y92: 0 | Z92: 4504.01 | AA92: 4504.01 | AB92: 0 | AC92: 0
C93: IN Assn of County Commissioners | E93: 18699.16 | F93: 25 | G93: 0 | H93: 0 | I93: 0 | J93: 11 | K93: 0 | L93: 0 | M93: 0 | N93: 18735.16 | O93: 18735.16 | P93: 0 | Q93: 11491.07 | R93: 39.54 | S93: 0 | T93: 0 | U93: 0 | V93: 0 | W93: 0 | X93: 17 | Y93: 0 | Z93: 11547.61 | AA93: 11547.61 | AB93: 0 | AC93: 0
C94: IN Assn of Health Plans, Inc. | E94: 31338.83 | F94: 132.59 | G94: 0 | H94: 65.82 | I94: 0 | J94: 1400 | K94: 0 | L94: 0 | M94: 0 | N94: 32937.24 | O94: 32937.24 | P94: 7.275957614e-12 | Q94: 10606.47 | R94: 74.6 | S94: 0 | T94: 0 | U94: 0 | V94: 0 | W94: 0 | X94: 15 | Y94: 0 | Z94: 10696.07 | AA94: 10696.07 | AB94: 0 | AC94: 7.275957614e-12
C95: IN Assn of Homes & Services for the Aging | E95: 15232.94 | F95: 0 | G95: 0 | H95: 0 | I95: 0 | J95: 0 | K95: 0 | L95: 0 | M95: 0 | N95: 15232.94 | O95: 15232.94 | P95: 0 | Q95: 10293.39 | R95: 19.95 | S95: 0 | T95: 0 | U95: 0 | V95: 0 | W95: 0 | X95: 15 | Y95: 0 | Z95: 10328.34 | AA95: 10328.34 | AB95: 0 | AC95: 0
C96: IN Bell Telephone d/b/a AT&T | E96: 18491.31 | F96: 7.9 | G96: 0 | H96: 0 | I96: 0 | J96: 0 | K96: 0 | L96: 0 | M96: 0.21 | N96: 18499.42 | O96: 18499.42 | P96: 3.637978807e-12 | Q96: 22113.42 | R96: 22.57 | S96: 0 | T96: 0 | U96: 0 | V96: 0 | W96: 0 | X96: 5 | Y96: 0 | Z96: 22140.99 | AA96: 22140.99 | AB96: -3.637978807e-12 | AC96: 0
C97: IN Bond Bank | E97: 14834 | F97: 0 | G97: 0 | H97: 0 | I97: 0 | J97: 0 | K97: 0 | L97: 0 | M97: 0 | N97: =SUM(E97:M97) -> 14834 | O97: 14834 | P97: =SUM(N97-O97) -> 0 | Q97: 1771.01 | R97: 0 | S97: 0 | T97: 0 | U97: 0 | V97: 0 | W97: 0 | X97: 12 | Y97: 0 | Z97: 1783.01 | AA97: 1783.01 | AB97: 0 | AC97: 0
C98: IN Building Contractors Alliance | E98: 28818.2 | F98: 1059.64 | G98: 0 | H98: 0 | I98: 0 | J98: 7.61 | K98: 0 | L98: 2 | M98: 0 | N98: 29887.45 | O98: 29887.45 | P98: 0 | Q98: 27280.01 | R98: 44.19 | S98: 0 | T98: 0 | U98: 0 | V98: 0 | W98: 0 | X98: 5 | Y98: 0 | Z98: 27329.2 | AA98: 27329.2 | AB98: -3.637978807e-12 | AC98: -3.637978807e-12
C99: IN Chptr Natl Acdmy Elder Law Attys | E99: 8270.23 | F99: 0 | G99: 0 | H99: 0 | I99: 0 | J99: 11 | K99: 0 | L99: 0 | M99: 0 | N99: 8281.23 | O99: 8281.23 | P99: 0 | Q99: 6224.94 | R99: 82.13 | S99: 0 | T99: 0 | U99: 0 | V99: 0 | W99: 0 | X99: 225 | Y99: 0 | Z99: 6532.07 | AA99: 6532.07 | AB99: 0 | AC99: 0
C100: IN Construction Assn | E100: 22125.41 | F100: 322.72 | G100: 0 | H100: 0 | I100: 0 | J100: 0 | K100: 0 | L100: 0 | M100: 0 | N100: 22448.13 | O100: 22448.13 | P100: 0 | Q100: 4611.84 | R100: 17.67 | S100: 0 | T100: 0 | U100: 0 | V100: 0 | W100: 0 | X100: 5 | Y100: 0 | Z100: 4634.51 | AA100: 4634.51 | AB100: 0 | AC100: 0
C101: IN County Treasurers Assn | E101: 5161.34 | F101: 0 | G101: 0 | H101: 0 | I101: 0 | J101: 0 | K101: 0 | L101: 205 | M101: 0 | N101: 5366.34 | O101: 5366.34 | P101: 0 | Q101: 203.23 | R101: 0 | S101: 0 | T101: 0 | U101: 0 | V101: 0 | W101: 0 | X101: 225 | Y101: 0 | Z101: 428.23 | AA101: 428.23 | AB101: 0 | AC101: 0
C102: IN Education Savings Authority | E102: 15307.49 | F102: 0 | G102: 0 | H102: 0 | I102: 0 | J102: 0 | K102: 0 | L102: 205 | M102: 0 | N102: 15512.49 | O102: 15512.49 | P102: 0 | Q102: 4989.1 | R102: 0 | S102: 0 | T102: 0 | U102: 0 | V102: 0 | W102: 0 | X102: 229 | Y102: 0 | Z102: 5218.1 | AA102: 5218.1 | AB102: 0 | AC102: 0
C103: IN Electric Cooperatives | D103: TA | E103: 21643.85 | F103: 16.15 | G103: 0 | H103: 0 | I103: 0 | J103: 0 | K103: 0 | L103: 0 | M103: 0 | N103: =SUM(E103:M103) -> 21660 | O103: 21660 | P103: =SUM(N103-O103) -> 0 | Z103: 0 | AB103: 0 | AC103: 0
C104: IN Health Information Exchange, Inc. | E104: 12222.27 | F104: 15.86 | G104: 0 | H104: 0 | I104: 0 | J104: 0 | K104: 0 | L104: 0 | M104: 0 | N104: 12238.13 | O104: 12238.13 | P104: 1.818989404e-12 | Q104: 7846.02 | R104: 0 | S104: 0 | T104: 0 | U104: 0 | V104: 0 | W104: 0 | X104: 10 | Y104: 0 | Z104: 7856.02 | AA104: 7856.02 | AB104: 0 | AC104: 1.818989404e-12
C105: IN Philanthropy Alliance | E105: 5372.36 | F105: 133.87 | G105: 0 | H105: 0 | I105: 0 | J105: 11 | K105: 0 | L105: 0 | M105: 0 | N105: =SUM(E105:M105) -> 5517.23 | O105: 5517.23 | P105: =SUM(N105-O105) -> 0 | Q105: 10413.29 | R105: 19.95 | S105: 0 | T105: 0 | U105: 0 | V105: 0 | W105: 0 | X105: 20 | Y105: 0 | Z105: 10453.24 | AA105: 10453.24 | AB105: 1.818989404e-12 | AC105: 1.818989404e-12
C106: IN Rural Health | E106: 8385.41 | F106: 80.33 | G106: 0 | H106: 266.96 | I106: 0 | J106: 0 | K106: 0 | L106: 0 | M106: 0 | N106: 8732.7 | O106: 8732.7 | P106: -1.818989404e-12 | Q106: 8047.26 | R106: 120.64 | S106: 0 | T106: 0 | U106: 0 | V106: 0 | W106: 0 | X106: 0 | Y106: 0 | Z106: 8167.9 | AA106: 8167.9 | AB106: 9.094947018e-13 | AC106: -9.094947018e-13
C107: IN Secretary of State | E107: 9002.93 | F107: 0 | G107: 0 | H107: 0 | I107: 0 | J107: 0 | K107: 0 | L107: 0 | M107: 0 | N107: 9002.93 | O107: 9002.93 | P107: 0 | Q107: 3259.12 | R107: 32.56 | S107: 0 | T107: 0 | U107: 0 | V107: 0 | W107: 0 | X107: 10 | Y107: 0 | Z107: 3301.68 | AA107: 3301.68 | AB107: 0 | AC107: 0
C108: IN Society Prof Land Surveyors | E108: 15619.88 | F108: 338.29 | G108: 0 | H108: 0 | I108: 0 | J108: 0 | K108: 0 | L108: 0 | M108: 0 | N108: 15958.17 | O108: 15958.17 | P108: 0 | Q108: 5272.3 | R108: 0 | S108: 0 | T108: 0 | U108: 0 | V108: 17.67 | W108: 0 | X108: 10 | Y108: 0 | Z108: 5299.97 | AA108: 5299.97 | AB108: 0 | AC108: 0
C109: IN State Medical Assn | D109: TO | E109: 9411.45 | F109: 87.82 | G109: 0 | H109: 0 | I109: 0 | J109: 0 | K109: 0 | L109: 0 | M109: 0 | N109: 9499.27 | O109: 9499.27 | P109: 0 | Q109: 120.71 | R109: 0 | S109: 0 | T109: 0 | U109: 0 | V109: 0 | W109: 0 | X109: 5 | Y109: 0 | Z109: 125.71 | AA109: 125.71 | AB109: 0 | AC109: 0
C110: IN Statewide 911 Bd | E110: 16186.82 | F110: 0 | G110: 0 | H110: 0 | I110: 0 | J110: 0 | K110: 0 | L110: 0 | M110: 0 | N110: 16186.82 | O110: 16186.82 | P110: 0 | Q110: 1358.44 | R110: 0 | S110: 0 | T110: 0 | U110: 0 | V110: 0 | W110: 0 | X110: 10 | Y110: 0 | Z110: 1368.44 | AA110: 1368.44 | AB110: 0 | AC110: 0
C111: IN Vapor Company | E111: 7503.47 | F111: 0 | G111: 0 | H111: 0 | I111: 0 | J111: 0 | K111: 0 | L111: 0 | M111: 0 | N111: 7503.47 | O111: 7503.47 | P111: 0 | Q111: 120.71 | R111: 0 | S111: 0 | T111: 0 | U111: 0 | V111: 0 | W111: 0 | X111: 10 | Y111: 0 | Z111: 130.71 | AA111: 130.71 | AB111: -2.842170943e-14 | AC111: -2.842170943e-14
C112: Indpls Marion Co Public Library | D112: TO | E112: 0 | F112: 0 | G112: 0 | H112: 0 | I112: 0 | J112: 0 | K112: 0 | L112: 0 | M112: 0 | N112: 0 | O112: 0 | P112: 0 | Q112: 0 | R112: 0 | S112: 0 | T112: 0 | U112: 0 | V112: 0 | W112: 0 | X112: 5 | Y112: 0 | Z112: 5 | AA112: 5 | AB112: 0 | AC112: 0
C113: Indpls Public Transpo Corporation | E113: 17167.35 | F113: 0 | G113: 0 | H113: 0 | I113: 0 | J113: 0 | K113: 0 | L113: 0 | M113: 0 | N113: 17167.35 | O113: 17167.35 | P113: 0 | Q113: 11286.2 | R113: 0 | S113: 0 | T113: 0 | U113: 0 | V113: 0 | W113: 0 | X113: 10 | Y113: 0 | Z113: 11296.2 | AA113: 11296.2 | AB113: 0 | AC113: 0
C114: Indy Sports & Entmnt dba Indy Eleven | E114: 28425.85 | F114: 29.89 | G114: 0 | H114: 0 | I114: 0 | J114: 0 | K114: 0 | L114: 206 | M114: 0 | N114: 28661.74 | O114: 28661.74 | P114: -3.637978807e-12 | Q114: 3621.24 | R114: 0 | S114: 0 | T114: 0 | U114: 0 | V114: 0 | W114: 0 | X114: 2359 | Y114: 0 | Z114: 5980.24 | AA114: 5980.24 | AB114: 0 | AC114: -3.637978807e-12
C115: ITT Corporation | D115: TO | E115: 6691.47 | F115: 0 | G115: 0 | H115: 0 | I115: 0 | J115: 0 | K115: 0 | L115: 0 | M115: 0 | N115: =SUM(E115:M115) -> 6691.47 | O115: 6691.47 | P115: =SUM(N115-O115) -> 0 | Q115: 224.4 | R115: 0 | S115: 0 | T115: 0 | U115: 0 | V115: 0 | W115: 0 | X115: 10 | Y115: 0 | Z115: =SUM(Q115:Y115) -> 234.4 | AA115: 234.4 | AB115: =SUM(Z115-AA115) -> 0 | AC115: =SUM(P115+AB115) -> 0
C116: Lake Co Solid Waste Mgmnt District | E116: 32672.97 | F116: 45 | G116: 0 | H116: 0 | I116: 0 | J116: 0 | K116: 0 | L116: 0 | M116: 0 | N116: 32717.97 | O116: 32717.97 | P116: 0 | Q116: 11381.4 | R116: 0 | S116: 0 | T116: 0 | U116: 0 | V116: 0 | W116: 0 | X116: 5 | Y116: 0 | Z116: 11386.4 | AA116: 11386.4 | AB116: 0 | AC116: 0
C117: Life Sciences Logistics | D117: TA | E117: 18358.91 | F117: 0 | G117: 0 | H117: 0 | I117: 0 | J117: 0 | K117: 0 | L117: 0 | M117: 0 | N117: 18358.91 | O117: 18358.91 | P117: 0 | Z117: 0 | AB117: 0 | AC117: 0
C118: The Majestic Star Casino | E118: 25199.37 | F118: 115.02 | G118: 0 | H118: 0 | I118: 0 | J118: 207.63 | K118: 0 | L118: 0 | M118: 0 | N118: 25522.02 | O118: 25522.02 | P118: 0 | Q118: 17744.08 | R118: 44.19 | S118: 0 | T118: 0 | U118: 0 | V118: 0 | W118: 0 | X118: 457 | Y118: 0 | Z118: 18245.27 | AA118: 18245.27 | AB118: 0 | AC118: 0
C119: Marion Superior Courts | E119: 13416.13 | F119: 0 | G119: 0 | H119: 0 | I119: 0 | J119: 0 | K119: 0 | L119: 400 | M119: 0 | N119: 13816.13 | O119: 13816.13 | P119: 0 | Q119: 301.77 | R119: 0 | S119: 0 | T119: 0 | U119: 0 | V119: 0 | W119: 0 | X119: 12 | Y119: 0 | Z119: 313.77 | AA119: 313.77 | AB119: 0 | AC119: 0
C120: MDWise | E120: 19373.95 | F120: 0 | G120: 0 | H120: 0 | I120: 0 | J120: 7.62 | K120: 0 | L120: 0 | M120: 0 | N120: =SUM(E120:M120) -> 19381.57 | O120: 19381.57 | P120: =SUM(N120-O120) -> 0 | Q120: 14726.38 | R120: 32.56 | S120: 0 | T120: 0 | U120: 0 | V120: 0 | W120: 0 | X120: 5 | Y120: 0 | Z120: =SUM(Q120:Y120) -> 14763.94 | AA120: 14763.94 | AB120: =SUM(Z120-AA120) -> -1.818989404e-12 | AC120: =SUM(P120+AB120) -> -1.818989404e-12
C121: MultiState obo Advance America | E121: 2131.03 | F121: 48.4 | G121: 0 | H121: 0 | I121: 0 | J121: 619.12 | K121: 0 | L121: 0 | M121: 0 | N121: 2798.55 | O121: 2798.55 | P121: 0 | Q121: 3243.73 | R121: 21.86 | S121: 0 | T121: 0 | U121: 0 | V121: 0 | W121: 0 | X121: 6.67 | Y121: 0 | Z121: 3272.26 | AA121: 3272.26 | AB121: 0 | AC121: 0
C122: MultiState obo Check into Cash | E122: 2131.03 | F122: 48.4 | G122: 0 | H122: 0 | I122: 0 | J122: 619.12 | K122: 0 | L122: 0 | M122: 0 | N122: =SUM(E122:M122) -> 2798.55 | O122: 2798.55 | P122: =SUM(N122-O122) -> 0 | Q122: 3243.73 | R122: 21.86 | S122: 0 | T122: 0 | U122: 0 | V122: 0 | W122: 0 | X122: 6.67 | Y122: 0 | Z122: =SUM(Q122:Y122) -> 3272.26 | AA122: 3272.26 | AB122: =SUM(Z122-AA122) -> 0 | AC122: =SUM(P122+AB122) -> 0
C123: Multistate obo Community Choice Financ | E123: 2131.04 | F123: 48.4 | G123: 0 | H123: 0 | I123: 0 | J123: 619.13 | K123: 0 | L123: 0 | M123: 0 | N123: =SUM(E123:M123) -> 2798.57 | O123: 2798.57 | P123: =SUM(N123-O123) -> 0 | Q123: 3243.73 | R123: 21.86 | S123: 0 | T123: 0 | U123: 0 | V123: 0 | W123: 0 | X123: 6.67 | Y123: 0 | Z123: =SUM(Q123:Y123) -> 3272.26 | AA123: 3272.26 | AB123: =SUM(Z123-AA123) -> 0 | AC123: =SUM(P123+AB123) -> 0
C124: New Centaur | E124: 15114.8 | F124: 0 | G124: 0 | H124: 0 | I124: 0 | J124: 0 | K124: 0 | L124: 0 | M124: 0 | N124: 15114.8 | O124: 15114.8 | P124: 0 | Q124: 3586.34 | R124: 0 | S124: 0 | T124: 0 | U124: 0 | V124: 0 | W124: 0 | X124: 5 | Y124: 0 | Z124: 3591.34 | AA124: 3591.34 | AB124: 0 | AC124: 0
C125: Pearson N. America | E125: 6361.85 | F125: 229.82 | G125: 0 | H125: 70.61 | I125: 0 | J125: 11 | K125: 0 | L125: 0 | M125: 0 | N125: =SUM(E125:M125) -> 6673.28 | O125: 6673.28 | P125: =SUM(N125-O125) -> 0 | Q125: 5622.77 | R125: 19.95 | S125: 0 | T125: 0 | U125: 0 | V125: 0 | W125: 0 | X125: 227 | Y125: 0 | Z125: =SUM(Q125:Y125) -> 5869.72 | AA125: 5869.72 | AB125: =SUM(Z125-AA125) -> 0 | AC125: =SUM(P125+AB125) -> 0
C126: Providence Life Services | D126: TA | E126: 4105.36 | F126: 279.87 | G126: 0 | H126: 0 | I126: 0 | J126: 0 | K126: 0 | L126: 0 | M126: 0 | N126: =SUM(E126:M126) -> 4385.23 | O126: 4385.23 | P126: =SUM(N126-O126) -> 0 | Z126: =SUM(Q126:Y126) -> 0 | AB126: =SUM(Z126-AA126) -> 0 | AC126: =SUM(P126+AB126) -> 0
C127: RELX INC. | E127: 21059.57 | F127: 8.25 | G127: 0 | H127: 0 | I127: 0 | J127: 0 | K127: 0 | L127: 0 | M127: 0 | N127: 21067.82 | O127: 21067.82 | P127: 0 | Q127: 13881.42 | R127: 0 | S127: 0 | T127: 0 | U127: 0 | V127: 0 | W127: 0 | X127: 10 | Y127: 0 | Z127: 13891.42 | AA127: 13891.42 | AB127: 0 | AC127: 0
C128: Res-Care, Inc. | E128: 20300.72 | F128: 78.22 | G128: 0 | H128: 0 | I128: 0 | J128: 0 | K128: 0 | L128: 0 | M128: 0 | N128: =SUM(E128:M128) -> 20378.94 | O128: 20378.94 | P128: =SUM(N128-O128) -> 3.637978807e-12 | Q128: 14605.67 | R128: 44.19 | S128: 0 | T128: 0 | U128: 0 | V128: 0 | W128: 0 | X128: 15 | Y128: 0 | Z128: =SUM(Q128:Y128) -> 14664.86 | AA128: 14664.86 | AB128: =SUM(Z128-AA128) -> 0 | AC128: =SUM(P128+AB128) -> 3.637978807e-12
C129: Retired IN Public Employees Assn | E129: 13460.26 | F129: 0 | G129: 0 | H129: 0 | I129: 0 | J129: 0 | K129: 0 | L129: 0 | M129: 0 | N129: 13460.26 | O129: 13460.26 | P129: 0 | Q129: 12534.72 | R129: 0 | S129: 0 | T129: 0 | U129: 0 | V129: 0 | W129: 0 | X129: 130 | Y129: 0 | Z129: 12664.72 | AA129: 12664.72 | AB129: 0 | AC129: 0
C130: Simon Property Group | D130: TO | E130: 10234.41 | F130: 0 | G130: 0 | H130: 0 | I130: 0 | J130: 0 | K130: 0 | L130: 205 | M130: 0 | N130: 10439.41 | O130: 10439.41 | P130: 0 | Q130: 1193.41 | R130: 0 | S130: 0 | T130: 0 | U130: 0 | V130: 0 | W130: 0 | X130: 10 | Y130: 0 | Z130: 1203.41 | AA130: 1203.41 | AB130: 0 | AC130: 0
C131: Southern Wine & Spirits of IN | D131: TO | E131: 19129.97 | F131: 0 | G131: 0 | H131: 0 | I131: 0 | J131: 0 | K131: 0 | L131: 205 | M131: 0 | N131: =SUM(E131:M131) -> 19334.97 | O131: 19334.97 | P131: =SUM(N131-O131) -> 0 | Q131: 1771.01 | R131: 0 | S131: 0 | T131: 0 | U131: 0 | V131: 0 | W131: 0 | X131: 220 | Y131: 0 | Z131: 1991.01 | AA131: 1991.01 | AB131: 0 | AC131: 0
C132: Stand For Children | D132: TO | E132: 22710.19 | F132: 109.37 | G132: 0 | H132: 0 | I132: 0 | J132: 0 | K132: 0 | L132: 0 | M132: 0 | N132: 22819.56 | O132: 22819.56 | P132: -3.637978807e-12 | Q132: 617.85 | R132: 0 | S132: 0 | T132: 0 | U132: 0 | V132: 0 | W132: 0 | X132: 0 | Y132: 0 | Z132: 617.85 | AA132: 617.85 | AB132: 0 | AC132: -3.637978807e-12
C133: State of IN Public Emply Defer. Comp. | E133: 14834 | F133: 0 | G133: 0 | H133: 0 | I133: 0 | J133: 0 | K133: 0 | L133: 505 | M133: 0 | N133: =SUM(E133:M133) -> 15339 | O133: 15339 | P133: =SUM(N133-O133) -> 0 | Q133: 4411.49 | R133: 0 | S133: 0 | T133: 0 | U133: 0 | V133: 0 | W133: 0 | X133: 5 | Y133: 0 | Z133: 4416.49 | AA133: 4416.49 | AB133: 0 | AC133: 0
C134: Tax Management Assn, Inc. | E134: 5969.69 | F134: 788.66 | G134: 0 | H134: 11 | I134: 0 | J134: 0 | K134: 0 | L134: 0 | M134: 0 | N134: 6769.35 | O134: 6769.35 | P134: -9.094947018e-13 | Q134: 9431.85 | R134: 0 | S134: 0 | T134: 0 | U134: 0 | V134: 0 | W134: 0 | X134: 14 | Y134: 0 | Z134: 9445.85 | AA134: 9445.85 | AB134: 0 | AC134: -9.094947018e-13
C135: Teach for America-Indpls | E135: 21359.89 | F135: 164.26 | G135: 0 | H135: 0 | I135: 0 | J135: 7.62 | K135: 0 | L135: 0 | M135: 0 | N135: =SUM(E135:M135) -> 21531.77 | O135: 21531.77 | P135: =SUM(N135-O135) -> -3.637978807e-12 | Q135: 15450.62 | R135: 44.19 | S135: 0 | T135: 0 | U135: 0 | V135: 0 | W135: 0 | X135: 127 | Y135: 0 | Z135: 15621.81 | AA135: 15621.81 | AB135: 1.818989404e-12 | AC135: -1.818989404e-12
C136: Town of Griffith | D136: TO | E136: 20448.2 | F136: 0 | G136: 0 | H136: 0 | I136: 0 | J136: 0 | K136: 0 | L136: 0 | M136: 0 | N136: 20448.2 | O136: 20448.2 | P136: 0 | Q136: 24215.43 | R136: 0 | S136: 0 | T136: 0 | U136: 0 | V136: 0 | W136: 0 | X136: 12 | Y136: 0 | Z136: 24227.43 | AA136: 24227.43 | AB136: 0 | AC136: 0
C137: Town of Munster | E137: 18665.32 | F137: 0 | G137: 0 | H137: 0 | I137: 0 | J137: 0 | K137: 0 | L137: 205 | M137: 0 | N137: 18870.32 | O137: 18870.32 | P137: 0 | Q137: 8530.66 | R137: 0 | S137: 0 | T137: 0 | U137: 0 | V137: 0 | W137: 0 | X137: 225 | Y137: 0 | Z137: 8755.66 | AA137: 8755.66 | AB137: 0 | AC137: 0
C138: Town of Speedway Redevelopment Com. | D138: TO | E138: 11341.92 | F138: 36.8 | G138: 0 | H138: 0 | I138: 0 | J138: 0 | K138: 0 | L138: 410 | M138: 0 | N138: 11788.72 | O138: 11788.72 | P138: 0 | Q138: 603.54 | R138: 0 | S138: 0 | T138: 0 | U138: 0 | V138: 0 | W138: 0 | X138: 15 | Y138: 0 | Z138: 618.54 | AA138: 618.54 | AB138: 0 | AC138: 0
C139: Town of Zionsville | D139: p2 | M139: 0 | N139: =SUM(E139:M139) -> 0 | O139: 0 | P139: =SUM(N139-O139) -> 0 | Q139: 4487.9 | R139: 0 | S139: 0 | T139: 0 | U139: 0 | V139: 0 | W139: 0 | X139: 215 | Y139: 0 | Z139: =SUM(Q139:Y139) -> 4702.9 | AA139: 4702.9 | AB139: =SUM(Z139-AA139) -> 0 | AC139: =SUM(P139+AB139) -> 0
C140: UHS of Delaware Inc. | D140: TA | E140: 3043.53 | F140: 245.72 | G140: 0 | H140: 0 | I140: 0 | J140: 11 | K140: 0 | L140: 0 | M140: 0 | N140: 3300.25 | O140: 3300.25 | P140: 0 | Z140: 0 | AB140: 0 | AC140: 0
C141: University of Notre Dame du Lac | E141: 28896.35 | F141: 0 | G141: 0 | H141: 0 | I141: 0 | J141: 0 | K141: 0 | L141: 0 | M141: 0 | N141: 28896.35 | O141: 28896.35 | P141: 0 | Q141: 20702.95 | R141: 0 | S141: 0 | T141: 0 | U141: 0 | V141: 0 | W141: 0 | X141: 130 | Y141: 0 | Z141: 20832.95 | AA141: 20832.95 | AB141: 0 | AC141: 0
C142: Vertex Pharma | D142: p2 | N142: =SUM(E142:M142) -> 0 | O142: 0 | P142: =SUM(N142-O142) -> 0 | Q142: 4568.47 | R142: 0 | S142: 0 | T142: 0 | U142: 0 | V142: 0 | W142: 0 | X142: 0 | Y142: 0 | Z142: =SUM(Q142:Y142) -> 4568.47 | AA142: 4568.47 | AB142: =SUM(Z142-AA142) -> 0 | AC142: =SUM(P142+AB142) -> 0
C143: Wal-Mart Stores, Inc. | D143: TA | E143: 7440.51 | F143: 0 | G143: 0 | H143: 0 | I143: 0 | J143: 0 | K143: 0 | L143: 0 | M143: 0 | N143: 7440.51 | O143: 7440.51 | P143: 0 | Z143: 0 | AB143: 0 | AC143: 0
C144: Xerox | E144: 24272.6 | F144: 45.05 | G144: 0 | H144: 0 | I144: 0 | J144: 7.26 | K144: 0 | L144: 0 | M144: 0 | N144: 24324.91 | O144: 24324.91 | P144: -3.637978807e-12 | Q144: 21908.5 | R144: 44.19 | S144: 0 | T144: 0 | U144: 0 | V144: 0 | W144: 0 | X144: 12 | Y144: 0 | Z144: 21964.69 | AA144: 21964.69 | AB144: 0 | AC144: -3.637978807e-12
C145: Zionsville Community School Corp | D145: TA | E145: 17045.53 | F145: 0 | G145: 0 | H145: 0 | I145: 0 | J145: 0 | K145: 0 | L145: 205 | M145: 0 | N145: 17250.53 | O145: 17250.53 | P145: 0 | Z145: 0 | AB145: 0 | AC145: 0
A146: 2015 | B146: Barnett, Thomas D | C146: Roche Diagnostics Corp | E146: 0 | F146: 0 | G146: 0 | H146: 0 | I146: 0 | J146: 0 | K146: 0 | L146: 0 | M146: 0 | N146: 0 | O146: 0 | P146: 0 | Q146: 0 | R146: 0 | S146: 0 | T146: 0 | U146: 0 | V146: 0 | W146: 0 | X146: 0 | Y146: 0 | Z146: 0 | AA146: 0 | AB146: 0 | AC146: 0
A147: 2015 | B147: Barrientos III, Lawless | C147: DentaQuest | D147: TO | E147: 0 | F147: 0 | G147: 0 | H147: 0 | I147: 0 | J147: 0 | K147: 0 | L147: 0 | M147: 0 | N147: 0 | O147: 0 | P147: 0 | Q147: 0 | R147: 0 | S147: 0 | T147: 0 | U147: 0 | V147: 0 | W147: 0 | X147: 0 | Y147: 0 | Z147: 0 | AA147: 0 | AB147: 0 | AC147: 0
A148: 2015 | B148: Barth, John | C148: Coordinated Care Corp IN, Inc. | E148: 0 | F148: 0 | G148: 0 | H148: 0 | I148: 0 | J148: 0 | K148: 0 | L148: 0 | M148: 0 | N148: 0 | O148: 0 | P148: 0 | Q148: 0 | R148: 0 | S148: 0 | T148: 0 | U148: 0 | V148: 0 | W148: 0 | X148: 0 | Y148: 0 | Z148: 0 | AA148: 0 | AB148: 0 | AC148: 0
A149: 2015 | B149: Bauer, Ben | C149: IN Assn of Realtors | E149: 0 | F149: 0 | G149: 0 | H149: 0 | I149: 0 | J149: 0 | K149: 0 | L149: 0 | M149: 0 | N149: 0 | O149: 0 | P149: 0 | Q149: 0 | R149: 0 | S149: 0 | T149: 0 | U149: 0 | V149: 0 | W149: 0 | X149: 0 | Y149: 0 | Z149: 0 | AA149: 0 | AB149: 0 | AC149: 0
A150: 2015 | B150: Bauer, Beth | C150: ACEC IN | E150: 0 | F150: 0 | G150: 0 | H150: 7.84 | I150: 0 | J150: 0 | K150: 0 | L150: 0 | M150: 0 | N150: 7.84 | O150: 0 | P150: 7.84 | Q150: 0 | R150: 0 | S150: 0 | T150: 0 | U150: 0 | V150: 0 | W150: 0 | X150: 0 | Y150: 0 | Z150: 0 | AA150: 0 | AB150: 0 | AC150: 7.84
A151: 2015 | B151: Baughn, Bradley | C151: IN Petro & Convenience Store Assn | E151: 0 | F151: 0 | G151: 0 | H151: 0 | I151: 0 | J151: 0 | K151: 0 | L151: 0 | M151: 0 | N151: 0 | O151: 0 | P151: 0 | Q151: 0 | R151: 0 | S151: 0 | T151: 0 | U151: 0 | V151: 0 | W151: 0 | X151: 0 | Y151: 0 | Z151: 0 | AA151: 0 | AB151: 0 | AC151: 0
C152: IN Propane Gas Assn | E152: 0 | F152: 0 | G152: 0 | H152: 0 | I152: 0 | J152: 0 | K152: 0 | L152: 0 | M152: 0 | N152: 0 | O152: 0 | P152: 0 | Q152: 0 | R152: 0 | S152: 0 | T152: 0 | U152: 0 | V152: 0 | W152: 0 | X152: 0 | Y152: 0 | Z152: 0 | AA152: 0 | AB152: 0 | AC152: 0
A153: 2015 | B153: Baumruck, Scott | C153: Prof Insurance Agents IN | E153: 0 | F153: 0 | G153: 0 | H153: 0 | I153: 0 | J153: 0 | K153: 0 | L153: 0 | M153: 0 | N153: 0 | O153: 0 | P153: 0 | Q153: 0 | R153: 0 | S153: 0 | T153: 0 | U153: 0 | V153: 0 | W153: 0 | X153: 0 | Y153: 0 | Z153: 0 | AA153: 0 | AB153: 0 | AC153: 0
A154: 2015 | B154: Beaumont, Christopher | C154: IN Credit Union League | E154: 0 | F154: 0 | G154: 0 | H154: 0 | I154: 0 | J154: 0 | K154: 0 | L154: 0 | M154: 0 | N154: 0 | O154: 0 | P154: 0 | Q154: 0 | R154: 0 | S154: 0 | T154: 0 | U154: 0 | V154: 0 | W154: 0 | X154: 0 | Y154: 0 | Z154: 0 | AA154: 0 | AB154: 0 | AC154: 0
A155: 2015 | B155: Beber, Melissa | C155: Grtr Fort Wayne Metro Chamber Alliance | E155: 0 | F155: 0 | G155: 0 | H155: 0 | I155: 0 | J155: 0 | K155: 0 | L155: 0 | M155: 0 | N155: 0 | O155: 0 | P155: 0 | Q155: 0 | R155: 0 | S155: 0 | T155: 0 | U155: 0 | V155: 0 | W155: 0 | X155: 0 | Y155: 0 | Z155: 0 | AA155: 0 | AB155: 0 | AC155: 0
A156: 2015 | B156: Beck, Jim | C156: Alcoa, Inc. | E156: 0 | F156: 0 | G156: 0 | H156: 0 | I156: 0 | J156: 0 | K156: 0 | L156: 0 | M156: 0 | N156: 0 | O156: 0 | P156: 0 | Q156: 0 | R156: 0 | S156: 0 | T156: 0 | U156: 0 | V156: 0 | W156: 0 | X156: 0 | Y156: 0 | Z156: 0 | AA156: 0 | AB156: 0 | AC156: 0
A157: 2015 | B157: Beck, Robin | C157: Ice Miller | E157: 0 | F157: 0 | G157: 0 | H157: 0 | I157: 0 | J157: 0 | K157: 0 | L157: 0 | M157: 0 | N157: 0 | O157: 0 | P157: 0 | Q157: 0 | R157: 0 | S157: 0 | T157: 0 | U157: 0 | V157: 0 | W157: 0 | X157: 0 | Y157: 0 | Z157: 0 | AA157: 0 | AB157: 0 | AC157: 0
A158: 2015 | B158: Beebe, Scherer & Assoc | C158: non client expenses | E158: 0 | F158: 0 | G158: 0 | H158: 110.29 | I158: 0 | J158: 0 | K158: 114.31 | L158: 0 | M158: 0 | N158: 224.6 | O158: 0 | P158: 224.6 | Q158: 0 | R158: 0 | S158: 0 | T158: 19.36 | U158: 0 | V158: 0 | W158: 0 | X158: 2273 | Y158: 0 | Z158: 2292.36 | AA158: 0 | AB158: 2292.36 | AC158: 2516.96
C159: IN Assn for Marriage & Family Therapists | E159: 15.31 | F159: 0 | G159: 0 | H159: 0 | I159: 0 | J159: 0 | K159: 0 | L159: 205 | M159: 0 | N159: 220.31 | O159: 220.31 | P159: 0 | Q159: 0 | R159: 0 | S159: 0 | T159: 0 | U159: 0 | V159: 0 | W159: 0 | X159: 215 | Y159: 0 | Z159: 215 | AA159: 215 | AB159: 0 | AC159: 0
C160: IN Assn Nurse Anesthetists | E160: 65 | F160: 0 | G160: 0 | H160: 0 | I160: 0 | J160: 0 | K160: 0 | L160: 205 | M160: 0 | N160: 270 | O160: 270 | P160: 0 | Q160: 13 | R160: 0 | S160: 0 | T160: 0 | U160: 0 | V160: 0 | W160: 0 | X160: 215 | Y160: 0 | Z160: 228 | AA160: 228 | AB160: 0 | AC160: 0
C161: IN Chptr American Physical Thrpy Assn | E161: 448.5 | F161: 0 | G161: 0 | H161: 0 | I161: 0 | J161: 0 | K161: 0 | L161: 17.08 | M161: 0 | N161: 465.58 | O161: 465.58 | P161: 0 | Q161: 57.5 | R161: 0 | S161: 0 | T161: 0 | U161: 0 | V161: 0 | W161: 0 | X161: 0 | Y161: 0 | Z161: 57.5 | AA161: 57.5 | AB161: 0 | AC161: 0
C162: IN Dental Hygienists Assn | E162: 120 | F162: 0 | G162: 0 | H162: 23.06 | I162: 0 | J162: 0 | K162: 0 | L162: 17.08 | M162: 0 | N162: 160.14 | O162: 160.14 | P162: 0 | Q162: 30 | R162: 0 | S162: 0 | T162: 21.9 | U162: 0 | V162: 0 | W162: 0 | X162: 0 | Y162: 0 | Z162: =SUM(Q162:Y162) -> 51.9 | AA162: 51.9 | AB162: =SUM(Z162-AA162) -> 0 | AC162: =SUM(P162+AB162) -> 0
C163: IN Fire Chiefs Assn | E163: 245 | F163: 0 | G163: 0 | H163: 0 | I163: 0 | J163: 0 | K163: 0 | L163: 205 | M163: 0 | N163: 450 | O163: 450 | P163: 0 | Q163: 0 | R163: 0 | S163: 0 | T163: 0 | U163: 0 | V163: 0 | W163: 0 | X163: 215 | Y163: 0 | Z163: 215 | AA163: 215 | AB163: 0 | AC163: 0
C164: IN Fire Sprinkler | D164: TA | E164: 450 | F164: 0 | G164: 0 | H164: 0 | I164: 0 | J164: 0 | K164: 0 | L164: 17.08 | M164: 0 | N164: 467.08 | O164: 450 | P164: 17.08 | Z164: 0 | AB164: 0 | AC164: 17.08
C165: IN Health Care Assn | E165: 540 | F165: 0 | G165: 0 | H165: 0 | I165: 0 | J165: 0 | K165: 0 | L165: 15.08 | M165: 0 | N165: 555.08 | O165: 555.08 | P165: 0 | Q165: 90 | R165: 0 | S165: 0 | T165: 0 | U165: 0 | V165: 0 | W165: 0 | X165: 0 | Y165: 0 | Z165: 90 | AA165: 90 | AB165: 0 | AC165: 0
C166: IN Retired Teachers Assn | E166: 780 | F166: 0 | G166: 0 | H166: 0 | I166: 0 | J166: 0 | K166: 0 | L166: 17.08 | M166: 0 | N166: 797.08 | O166: 797.08 | P166: 0 | Q166: 195 | R166: 0 | S166: 0 | T166: 0 | U166: 0 | V166: 0 | W166: 0 | X166: 0 | Y166: 0 | Z166: 195 | AA166: 195 | AB166: 0 | AC166: 0
C167: IN Society of Respiratory Care | E167: 13.2 | F167: 0 | G167: 0 | H167: 0 | I167: 0 | J167: 0 | K167: 0 | L167: 205 | M167: 0 | N167: 218.2 | O167: 218.2 | P167: 0 | Q167: 0 | R167: 0 | S167: 0 | T167: 0 | U167: 0 | V167: 0 | W167: 0 | X167: 215 | Y167: 0 | Z167: 215 | AA167: 215 | AB167: 0 | AC167: 0
C168: IN Speeh Language Hearing Assn | E168: 150 | F168: 0 | G168: 0 | H168: 0 | I168: 0 | J168: 0 | K168: 0 | L168: 205 | M168: 0 | N168: 355 | O168: 355 | P168: 0 | Q168: 0 | R168: 0 | S168: 0 | T168: 0 | U168: 0 | V168: 0 | W168: 0 | X168: 115 | Y168: 0 | Z168: 115 | AA168: 115 | AB168: 0 | AC168: 0
C169: IN Vending Council | E169: 90.6 | F169: 0 | G169: 0 | H169: 0 | I169: 0 | J169: 0 | K169: 0 | L169: 17.8 | M169: 0 | N169: =SUM(E169:M169) -> 108.4 | O169: 108.4 | P169: =SUM(N169-O169) -> -1.421085472e-14 | Q169: 45.3 | R169: 0 | S169: 0 | T169: 33.5 | U169: 0 | V169: 0 | W169: 0 | X169: 0 | Y169: 0 | Z169: 78.8 | AA169: 78.8 | AB169: 0 | AC169: -1.421085472e-14
C170: IN Wholesale Distributors Assn | E170: 342.6 | F170: 0 | G170: 0 | H170: 0 | I170: 0 | J170: 0 | K170: 0 | L170: 17.8 | M170: 0 | N170: 360.4 | O170: 360.4 | P170: 5.684341886e-14 | Q170: 85.65 | R170: 0 | S170: 0 | T170: 0 | U170: 0 | V170: 0 | W170: 0 | X170: 0 | Y170: 0 | Z170: 85.65 | AA170: 85.65 | AB170: 0 | AC170: 5.684341886e-14
A171: 2015 | B171: Beebe, Steven | C171: Beebe Scherer & Assoc. | E171: 0 | F171: 0 | G171: 0 | H171: 0 | I171: 0 | J171: 0 | K171: 0 | L171: 0 | M171: 0 | N171: 0 | O171: 0 | P171: 0 | Q171: 0 | R171: 0 | S171: 0 | T171: 0 | U171: 0 | V171: 0 | W171: 0 | X171: 215 | Y171: 0 | Z171: 215 | AA171: 0 | AB171: 215 | AC171: 215
A172: 2015 | B172: Belch, Louis | C172: The Corydon Group | E172: 0 | F172: 0 | G172: 0 | H172: 3074.97 | I172: 0 | J172: 1173.39 | K172: 2339.76 | L172: 0 | M172: 0 | N172: 6588.12 | O172: 6588.12 | P172: 0 | Q172: 0 | R172: 0 | S172: 0 | T172: 239.59 | U172: 0 | V172: 400 | W172: 1175.92 | X172: 0 | Y172: 0 | Z172: 1815.51 | AA172: 1815.51 | AB172: 2.273736754e-13 | AC172: 2.273736754e-13
A173: 2015 | B173: Belden, Wayne | C173: IN Farm Bureau Inc. | E173: 0 | F173: 0 | G173: 0 | H173: 0 | I173: 0 | J173: 0 | K173: 0 | L173: 0 | M173: 0 | N173: 0 | O173: 0 | P173: 0 | Q173: 0 | R173: 0 | S173: 0 | T173: 0 | U173: 0 | V173: 0 | W173: 0 | X173: 0 | Y173: 0 | Z173: 0 | AA173: 0 | AB173: 0 | AC173: 0
A174: 2015 | B174: Bell, Caitlin | C174: Hoosiers for Quality Education | D174: TO | E174: 0 | F174: 0 | G174: 0 | H174: 0 | I174: 0 | J174: 0 | K174: 0 | L174: 0 | M174: 0 | N174: =SUM(E174:M174) -> 0 | O174: 0 | P174: =SUM(N174-O174) -> 0 | Q174: 0 | R174: 0 | S174: 0 | T174: 0 | U174: 0 | V174: 0 | W174: 0 | X174: 0 | Y174: 0 | Z174: =SUM(Q174:Y174) -> 0 | AA174: 0 | AB174: =SUM(Z174-AA174) -> 0 | AC174: =SUM(P174+AB174) -> 0
A175: 2015 | B175: Bell, Jason | C175: IN Trial Lawyers Assn | E175: 0 | F175: 0 | G175: 0 | H175: 0 | I175: 0 | J175: 0 | K175: 0 | L175: 0 | M175: 0 | N175: 0 | O175: 0 | P175: 0 | Q175: 0 | R175: 0 | S175: 0 | T175: 0 | U175: 0 | V175: 0 | W175: 0 | X175: 0 | Y175: 0 | Z175: 0 | AA175: 0 | AB175: 0 | AC175: 0
A176: 2015 | B176: Bell, Matt | C176: Catalyst Public Affairs Grp | E176: 0 | F176: 0 | G176: 0 | H176: 0 | I176: 0 | J176: 0 | K176: 0 | L176: 0 | M176: 0 | N176: 0 | O176: 0 | P176: 0 | Q176: 0 | R176: 0 | S176: 0 | T176: 0 | U176: 0 | V176: 0 | W176: 0 | X176: 0 | Y176: 0 | Z176: 0 | AA176: 0 | AB176: 0 | AC176: 0
A177: 2015 | B177: Benen, Sandie | C177: GlaxoSmithKline | E177: 0 | F177: 0 | G177: 0 | H177: 190.77 | I177: 0 | J177: 0 | K177: 0 | L177: 0 | M177: 0 | N177: 190.77 | O177: 190.77 | P177: 0 | Q177: 0 | R177: 0 | S177: 0 | T177: 49.62 | U177: 0 | V177: 0 | W177: 0 | X177: 0 | Y177: 0 | Z177: 49.62 | AA177: 49.62 | AB177: 0 | AC177: 0
A178: 2015 | B178: Bennett, Patrick | C178: PKB Consulting LLC | E178: 0 | F178: 0 | G178: 0 | H178: 0 | I178: 0 | J178: 0 | K178: 0 | L178: 200 | M178: 0 | N178: 200 | O178: 0 | P178: 200 | Q178: 0 | R178: 0 | S178: 0 | T178: 0 | U178: 0 | V178: 0 | W178: 0 | X178: 0 | Y178: 0 | Z178: 0 | AA178: 0 | AB178: 0 | AC178: 200
A179: 2015 | B179: Berger, Andrew | C179: Assn of IN Counties | D179: TA | E179: 0 | F179: 0 | G179: 0 | H179: 0 | I179: 0 | J179: 0 | K179: 0 | L179: 0 | M179: 0 | N179: 0 | O179: 0 | P179: 0 | Z179: 0 | AB179: 0 | AC179: 0
C180: IN Manufacturers Assn | E180: 0 | F180: 0 | G180: 0 | H180: 7.8 | I180: 0 | J180: 0 | K180: 0 | L180: 0 | M180: 0 | N180: 7.8 | O180: 0 | P180: 7.8 | Q180: 0 | R180: 0 | S180: 0 | T180: 0 | U180: 0 | V180: 0 | W180: 0 | X180: 0 | Y180: 0 | Z180: 0 | AA180: 0 | AB180: 0 | AC180: 7.8
A181: 2015 | B181: Bergsma, Brian | C181: IN Michigan Power | E181: 0 | F181: 0 | G181: 0 | H181: 0 | I181: 0 | J181: 0 | K181: 0 | L181: 0 | M181: 0 | N181: 0 | O181: 0 | P181: 0 | Q181: 0 | R181: 0 | S181: 0 | T181: 0 | U181: 0 | V181: 0 | W181: 0 | X181: 0 | Y181: 0 | Z181: 0 | AA181: 0 | AB181: 0 | AC181: 0
A182: 2015 | B182: Berron, Karl | C182: IN Assn of Realtors, Inc. | E182: 0 | F182: 0 | G182: 0 | H182: 0 | I182: 0 | J182: 0 | K182: 0 | L182: 0 | M182: 0 | N182: 0 | O182: 0 | P182: 0 | Q182: 0 | R182: 0 | S182: 0 | T182: 0 | U182: 0 | V182: 0 | W182: 0 | X182: 0 | Y182: 0 | Z182: 0 | AA182: 0 | AB182: 0 | AC182: 0
A183: 2015 | B183: Bess, Scott | C183: Goodwill Education Initiatives | E183: 0 | F183: 0 | G183: 0 | H183: 0 | I183: 0 | J183: 0 | K183: 0 | L183: 0 | M183: 0 | N183: 0 | O183: 0 | P183: 0 | Q183: 0 | R183: 0 | S183: 0 | T183: 0 | U183: 0 | V183: 0 | W183: 0 | X183: 0 | Y183: 0 | Z183: 0 | AA183: 0 | AB183: 0 | AC183: 0
A184: 2015 | B184: Bess, Todd | C184: IN School Principals Assn | E184: 0 | F184: 0 | G184: 0 | H184: 0 | I184: 0 | J184: 0 | K184: 0 | L184: 0 | M184: 0 | N184: 0 | O184: 0 | P184: 0 | Q184: 0 | R184: 0 | S184: 0 | T184: 0 | U184: 0 | V184: 0 | W184: 0 | X184: 0 | Y184: 0 | Z184: 0 | AA184: 0 | AB184: 0 | AC184: 0
A185: 2015 | B185: Biberstine, Michael | C185: CivicPoint | E185: 0 | F185: 0 | G185: 0 | H185: 0 | I185: 0 | J185: 0 | K185: 0 | L185: 0 | M185: 0 | N185: 0 | O185: 0 | P185: 0 | Q185: 0 | R185: 0 | S185: 0 | T185: 0 | U185: 0 | V185: 0 | W185: 0 | X185: 0 | Y185: 0 | Z185: 0 | AA185: 0 | AB185: 0 | AC185: 0
A186: 2015 | B186: Bingaman, Ehren | C186: HNTB Corporation | D186: TA | E186: 0 | F186: 0 | G186: 0 | H186: 0 | I186: 0 | J186: 0 | K186: 0 | L186: 0 | M186: 0 | N186: 0 | O186: 0 | P186: 0 | Z186: 0 | AB186: 0 | AC186: 0
A187: 2015 | B187: Bingham Greenebaum Doll | C187: non client expenses | N187: 0 | P187: 0 | Z187: 0 | AB187: 0 | AC187: 0
C188: Bio-Response Solutions | D188: TO | E188: 4125.87 | F188: 0 | G188: 0 | H188: 0 | I188: 0 | J188: 0 | K188: 0 | L188: 0 | M188: 0 | N188: 4125.87 | O188: 4125.87 | P188: 0 | Q188: 0 | R188: 0 | S188: 0 | T188: 0 | U188: 0 | V188: 0 | W188: 0 | X188: 0 | Y188: 0 | Z188: 0 | AA188: 0 | AB188: 0 | AC188: 0
C189: Capital Imprv Board of Mgrs Marion Co | E189: 0 | F189: 0 | G189: 0 | H189: 0 | I189: 0 | J189: 0 | K189: 0 | L189: 0 | M189: 0 | N189: 0 | O189: 0 | P189: 0 | Q189: 0 | R189: 0 | S189: 0 | T189: 0 | U189: 0 | V189: 0 | W189: 0 | X189: 0 | Y189: 0 | Z189: 0 | AA189: 0 | AB189: 0 | AC189: 0
C190: City of Bloomington, IN | D190: TO | E190: 21.93 | F190: 0 | G190: 0 | H190: 0 | I190: 0 | J190: 0 | K190: 0 | L190: 0 | M190: 0 | N190: 21.93 | O190: 21.93 | P190: 0 | Q190: 0 | R190: 0 | S190: 0 | T190: 0 | U190: 0 | V190: 0 | W190: 0 | X190: 0 | Y190: 0 | Z190: 0 | AA190: 0 | AB190: 0 | AC190: 0
C191: City of Lawrenceburg | E191: 0 | F191: 0 | G191: 0 | H191: 0 | I191: 0 | J191: 0 | K191: 0 | L191: 0 | M191: 0 | N191: 0 | O191: 0 | P191: 0 | Q191: 0 | R191: 0 | S191: 0 | T191: 0 | U191: 0 | V191: 0 | W191: 0 | X191: 0 | Y191: 0 | Z191: 0 | AA191: 0 | AB191: 0 | AC191: 0
C192: City of New Albany | D192: TA | E192: 0 | F192: 0 | G192: 0 | H192: 0 | I192: 0 | J192: 0 | K192: 0 | L192: 0 | M192: 0 | N192: 0 | O192: 0 | P192: 0 | Z192: 0 | AB192: 0 | AC192: 0
C193: Enertouch Inc dba GoodCents Solutions | D193: TA | E193: 0 | F193: 0 | G193: 0 | H193: 0 | I193: 0 | J193: 0 | K193: 0 | L193: 0 | M193: 0 | N193: 0 | O193: 0 | P193: 0 | Z193: 0 | AB193: 0 | AC193: 0
C194: Gaming Laboratories Intl. | D194: TA | E194: 0 | F194: 0 | G194: 0 | H194: 0 | I194: 0 | J194: 0 | K194: 0 | L194: 0 | M194: 0 | N194: 0 | O194: 0 | P194: 0 | Z194: 0 | AB194: 0 | AC194: 0
C195: Goodwill Education Initiatives | E195: 507.33 | F195: 0 | G195: 0 | H195: 0 | I195: 0 | J195: 0 | K195: 0 | L195: 0 | M195: 0 | N195: 507.33 | O195: 507.33 | P195: 0 | Q195: 0 | R195: 0 | S195: 0 | T195: 0 | U195: 0 | V195: 0 | W195: 0 | X195: 0 | Y195: 0 | Z195: =SUM(Q195:Y195) -> 0 | AA195: 0 | AB195: =SUM(Z195-AA195) -> 0 | AC195: =SUM(P195+AB195) -> 0
C196: IN IL IA Fndtn Fair Contracting | D196: TA | E196: 0 | F196: 0 | G196: 0 | H196: 0 | I196: 0 | J196: 0 | K196: 0 | L196: 0 | M196: 0 | N196: 0 | O196: 0 | P196: 0 | Z196: 0 | AB196: 0 | AC196: 0
C197: Intl Union of Operating Eng | D197: TO | E197: 1075.83 | F197: 0 | G197: 0 | H197: 0 | I197: 0 | J197: 0 | K197: 0 | L197: 0 | M197: 0 | N197: 1075.83 | O197: 1075.83 | P197: 0 | Q197: 0 | R197: 0 | S197: 0 | T197: 0 | U197: 0 | V197: 0 | W197: 0 | X197: 0 | Y197: 0 | Z197: 0 | AA197: 0 | AB197: 0 | AC197: 0
C198: Magellan Health Svcs | D198: TA | E198: 0 | F198: 0 | G198: 0 | H198: 0 | I198: 0 | J198: 0 | K198: 0 | L198: 0 | M198: 0 | N198: 0 | O198: 0 | P198: 0 | Z198: 0 | AB198: 0 | AC198: 0
C199: Midwest Fertility Specialists | E199: 968.77 | F199: 0 | G199: 0 | H199: 0 | I199: 0 | J199: 0 | K199: 0 | L199: 0 | M199: 0 | N199: 968.77 | O199: 968.77 | P199: 0 | Q199: 0 | R199: 0 | S199: 0 | T199: 0 | U199: 0 | V199: 0 | W199: 0 | X199: 0 | Y199: 0 | Z199: 0 | AA199: 0 | AB199: 0 | AC199: 0
C200: New Albany Redevelopment Commiss. | D200: TO | E200: 0 | F200: 0 | G200: 0 | H200: 0 | I200: 0 | J200: 0 | K200: 0 | L200: 0 | M200: 0 | N200: 0 | O200: 0 | P200: 0 | Q200: 0 | R200: 0 | S200: 0 | T200: 0 | U200: 0 | V200: 0 | W200: 0 | X200: 0 | Y200: 0 | Z200: 0 | AA200: 0 | AB200: 0 | AC200: 0
C201: Pinnacle Entertainment | D201: TO | E201: 271.19 | F201: 0 | G201: 0 | H201: 0 | I201: 0 | J201: 0 | K201: 0 | L201: 0 | M201: 0 | N201: 271.19 | O201: 271.19 | P201: 0 | Q201: 0 | R201: 0 | S201: 0 | T201: 0 | U201: 0 | V201: 0 | W201: 0 | X201: 0 | Y201: 0 | Z201: 0 | AA201: 0 | AB201: 0 | AC201: 0
A202: 2015 | B202: Blackwell, Leo | C202: IN Fraternal Order of Police | E202: 0 | F202: 0 | G202: 0 | H202: 0 | I202: 0 | J202: 0 | K202: 0 | L202: 0 | M202: 0 | N202: =SUM(E202:M202) -> 0 | O202: 0 | P202: =SUM(N202-O202) -> 0 | Q202: 0 | R202: 0 | S202: 0 | T202: 0 | U202: 0 | V202: 0 | W202: 0 | X202: 0 | Y202: 0 | Z202: 0 | AA202: 0 | AB202: 0 | AC202: 0
... 1382 more rows

Sheet Sheet2

Sheet Sheet3
